Workbook

Sheet Formulário
AA1: QUADRO DE DADOS AUXILIARES
B2: QUANTO SE USA ?
K4: =CONCATENATE("- ",ROUND((I6*I12/($AA$24/100))/1000,1)) -> - 917,7 | AA4: 500 | AB4: 8650
D6: Distância média anual | E6: [km/ano] | I6: =$AB$4*10 -> 86500 | N6: =CONCATENATE("- ",ROUND(FatorEmissao!$S$19*(I6*I12/($AA$24/100))/1000,0)," kg/ano") -> - 929 kg/ano | AB6: 1 | AC6: 301
N7: =CONCATENATE("- ",ROUND(FatorEmissao!$S$26*(I6*I12/($AA$24/100))/1000,0)," kg/ano") -> - 1368 kg/ano
D8: Dias de operação/ano | E8: [dias/ano] | I8: =$AA$8 -> 290 | AA8: 290
D10: Distância diária média | E10: [km/dia] | I10: =CONCATENATE(TRUNC($I$6/DiasDeOperacaoNoAno,0)," km/dia") -> 298 km/dia | K10: =CONCATENATE("- ",TRUNC(IF(OR(TipoBiodigestor=1,TipoBiodigestor=3),FatorEmissao!$R$35+FatorEmissao!$R$8*((I6*I12)/($AA$24/100))*FatorEmissao!$R$11/1000000,FatorEmissao!$R$8*((I6*I12)/($AA$24/100))*FatorEmissao!$R$11/1000000),1)) -> - 16932 | Q10: Rio de Janeiro | AC10: 0 | AD10: =TiposBiodigestor!$D$7/((DistAnualAux*10)/DiasDeOperacaoNoAno) -> 16.76300578
N11: =CONCATENATE("- ",ROUND(FatorEmissao!$S$30*(I6*I12/($AA$24/100))/1000,0)," kg/ano") -> - 4439 kg/ano
D12: Qte. ônibus biometano | E12: [unidade] | I12: =AD10+FrotaMinimaBiometano -> 16.76300578 | Q12: =TODAY() -> 2021-06-11 | AA12: 1 | AC12: 2
B15: QUANTO CUSTA ?
O17: Comprar ônibus novo (R$) | R17: =AA17*1000 -> 510000 | T17: =CustoBiometanoNovo*1000 -> 550000 | V17: Custo de Conversão (R$) | AA17: 510 | AB17: 1500 | AC17: 550 | AD17: 1
D19: Preço do diesel (R$/l): | E19: =AC6/100 -> 3.01 | I19: Preço biometano (R$/m³) | K19: =PrecoBiometano/100 -> 2.49 | O19: Comprar ônibus usado (R$) | R19: =$R$17*$E$49 -> 153000 | S19: ="+"&(W19)&" =" -> +150000 = | T19: =$R$19+$W$19 -> 303000 | W19: =AB17*100 -> 150000 | AA19: 60 | AB19: 1610 | AC19: =$K$19*$I$12 -> 41.73988439
O21: Se já possui ônibus, o custo é apenas do "kit gás" (R$) | T21: =$W$19 -> 150000 | AC21: 10
AA22: 4 | AB22: 6
O24: Custo Operacional (R$/km) | R24: =IFERROR($E$19/($AA$24/100)," Custo Diesel") -> 1.905063291 | T24: =IFERROR($K$19/(SpinnerS25/100),"NA") -> 1.55625 | V24: =IF(CapexNovoUsado=3,"Se você já possui ônibus...",IF(CapexNovoUsado=2,"Atenção: ônibus usado!","")) ->  | AA24: 158 | AB24: =$I$12*PotDoCarregador*$AB$22 -> 6034.682081 | AC24: 15
K26: =CONCATENATE(TarifaBiometano," R$/m³") -> 1,45 R$/m³ | O26: =CONCATENATE(" ",CHAR(149)," Rendimento") -> • Rendimento | R26: =CONCATENATE(TRUNC(AA24/100,2)," km/l") -> 1,58 km/l | T26: =CONCATENATE(TRUNC(AB26/100,2)," km/m³") -> 1,6 km/m³ | V26: =IF(CapexNovoUsado=3,"Pague apenas pelo kit gás",IF(CapexNovoUsado=2,CONCATENATE(CHAR(149)," Avalie bem os parâmetros"),"")) ->  | AA26: FALSE | AB26: 160
V27: =IF(CapexNovoUsado=3,"para converter o ônibus a",IF(CapexNovoUsado=2,CONCATENATE(CHAR(149)," Rendimento menor"),"")) -> 
I28: =CONCATENATE("Capacidade: ",TiposBiodigestor!$D$7," m³/dia") -> Capacidade: 5000 m³/dia | O28: =CONCATENATE(" ",CHAR(149)," Custo do combustível") -> • Custo do combustível | R28: =CONCATENATE(E19," R$/l") -> 3,01 R$/l | T28: =IFERROR(CONCATENATE($K$19," R$/m³"),"NA") -> 2,49 R$/m³ | AB28: =TiposBiodigestor!F7 -> 1.45 | AC28: 249
V29: =IF(CapexNovoUsado=3,"diesel que você já possui",IF(CapexNovoUsado=2,CONCATENATE(CHAR(149)," Custo de Manutenção maior"),"")) -> 
I30: Frota mínima (ônibus) | O30: Custo de Manutenção (R$/km) | R30: =AA30/100 -> 0.77 | T30: =AB30/100 -> 0.76 | AA30: 77 | AB30: 76
V31: =IF(CapexNovoUsado=3,CONCATENATE(CHAR(149)," Use a 3ª opção do CAPEX"),"") -> 
D32: =IF(EstadoPrecoDieselANP=1,"preço nacional (média simples)","") ->  | I32: =CONCATENATE(TEXT((TiposBiodigestor!$D$7/((DistAnualAux*10)/DiasDeOperacaoNoAno)),"#.##0; #.##0")," ônibus") -> 17 ônibus | O32: Custo Var. Anual (R$/ano) | R32: =(IFERROR($E$19/($AA$24/100)," Custo Diesel")+(AA30/100))*$I$6 -> 231392.9747 | T32: =IFERROR((T24+T30)*$I$6," Custo Elétrico") -> 200355.625 | AA32: 1
B36: COMO PAGAR ?
AB37: =IF(CapexNovoUsado=3,"FINANCIAMENTO DO KIT GÁS","FINANCIAMENTO-BIOMETANO") -> FINANCIAMENTO-BIOMETANO
I38: =IF(CapexNovoUsado=3," (Atenção às taxas de financiamento do kit gás)","") ->  | AA38: QUADRO GERAL DE INFORMAÇÕES
D39: Custo Capital Próprio | E39: =FluxoDeCaixa!B21 -> 0.14 | I39: Custo Capital Próprio | K39: =FluxoDeCaixa!B52 -> 0.145 | N39: =IFERROR(FluxoDeCaixa!B70,"TIR:") -> 0.2161931893 | O39: =IFERROR(CONCATENATE("Taxa Interna de Retorno (TIR): ",TRUNC(FluxoDeCaixa!B70,4)*100,"%"),"Taxa indefinida (problema de cálculo)") -> Taxa Interna de Retorno (TIR): 21,61%
D41: Custo Financiamento | E41: =FluxoDeCaixa!B22 -> 0.09 | I41: Custo Financiamento | K41: =FluxoDeCaixa!B53 -> 0.09 | N41: =FluxoDeCaixa!B69 -> -27442.5763 | O41: =IFERROR(CONCATENATE("Valor Presente Líquido (VPL): ",TEXT(FluxoDeCaixa!B69,"R$ #.##0;-R$ #.##0")),"Valor indefinido (problema de cálculo)") -> Valor Presente Líquido (VPL): -R$ 27.443
D43: Percentual financiado | E43: =FluxoDeCaixa!B23 -> 0.8 | I43: Percentual financiado | K43: =FluxoDeCaixa!B54 -> 0.8 | N43: =FluxoDeCaixa!$P$68 -> -27442.5763 | O43: =IFERROR(FluxoDeCaixa!A71, "Valor indefinido (problema de cálculo)") -> Estimativa de Payback > 10 anos | AA43: =IF(CapexNovoUsado=1,$AA$38,"") -> QUADRO GERAL DE INFORMAÇÕES
D45: Custo Pond. de Capital | E45: =FluxoDeCaixa!B25 -> 0.07552 | I45: Custo Pond. de Capital | K45: =FluxoDeCaixa!B56 -> 0.07652 | O45: Premissas da estimativa de payback
D47: Prazo financiamento | E47: =FluxoDeCaixa!B26 -> 5 | I47: Prazo financiamento | K47: =FluxoDeCaixa!B57 -> 5 | R47: DIESEL | T47: ELÉTRICO | V47: DIFERENÇA DE TCO10 | AA47: =(T49-R49)/(-K10*10) -> -1.596819613
D49: Valor de revenda (%) | E49: =FluxoDeCaixa!B20 -> 0.3 | I49: Valor de revenda (%) | K49: =FluxoDeCaixa!B51 -> 0 | N49: Custo Total em 10 anos (TCO10) | R49: =IF(CapexNovoUsado=3,(R32*10),IF(CapexNovoUsado=1,(R32*10+R17),(R32*10+R19))) -> 2823929.747 | T49: =IF(CapexNovoUsado=3,(T32*10+T21),IF(CapexNovoUsado=1,(T32*10+T17),(T32*10+T19))) -> 2553556.25 | V49: =R49-T49 -> 270373.4968
B52: CONSIDERAÇÕES
AA53: CUSTO DE ABATIMENTO (R$/ ton CO2) | AC53: =(T49-R49)/(((3070*(I6*I12/10000)*0.848/1000)/I12)*10) -> -1200.642695
AA54: =IF($AC$53<0,"(Solução custo-efetiva)","(Solução Custo-negativa)") -> (Solução custo-efetiva)

Sheet TiposBiodigestor
A1: Índice | B1: Tipo | C1: Descrição | D1: Capacidade | E1: Custo | F1: Preço
A2: 1 | B2: ATERRO | C2: - | D2: 5000 | E2: - | F2: 1.45
A3: 2 | B3: RURAL C/ ADUBO | C3: - | D3: 5000 | E3: - | F3: 1.75
A4: 3 | B4: URBANO | C4: - | D4: 5000 | E4: - | F4: 1.9
A5: 4 | B5: RURAL | C5: sem recursos de terceiros e TIR de 15% | D5: 5000 | E5: - | F5: 2.37
A7: =Formulário!AA12 -> 1 | B7: =VLOOKUP($A$7,TiposBiodigestor!$A$2:$F$5,2,0) -> ATERRO | C7: =VLOOKUP($A$7,TiposBiodigestor!$A$2:$F$5,3,0) -> - | D7: =VLOOKUP($A$7,TiposBiodigestor!$A$2:$F$5,4,0) -> 5000 | E7: =VLOOKUP($A$7,TiposBiodigestor!$A$2:$F$5,5,0) -> - | F7: =VLOOKUP($A$7,TiposBiodigestor!$A$2:$F$5,6,0) -> 1.45

Sheet FactSheet 1-2
D4: 1

Sheet Metodologia

Sheet FluxoDeCaixa
A1: Análise financeira por ônibus: Diesel Padron LE
A2: Ciclo de Avaliação de 10 anos | C2: 10
A3: Vida útil do ônibus a diesel 5 anos
A4: Período | B4: 0 | C4: 1 | D4: 2 | E4: 3 | F4: 4 | G4: 5 | H4: 6 | I4: 7 | J4: 8 | K4: 9 | L4: 10
A5: Custo de Aquisição | B5: =IF(CapexNovoUsado=3,0,IF(CapexNovoUsado=1,Formulário!R17,Formulário!R19)) -> 510000 | C5: 0 | D5: 0 | E5: 0 | F5: 0 | G5: =B5 -> 510000 | H5: 0 | I5: 0 | J5: 0 | K5: 0 | L5: 0
A6: Custo de Infraestrutura de recarga | C6: 0 | D6: 0 | E6: 0 | F6: 0 | G6: 0 | H6: 0 | I6: 0 | J6: 0 | K6: 0 | L6: 0
A7: Custo Variável Anual | C7: =SUM(C8:C10) -> 349712.9747 | D7: =SUM(D8:D10) -> 342368.9747 | E7: =SUM(E8:E10) -> 335024.9747 | F7: =SUM(F8:F10) -> 327680.9747 | G7: 320336.9747 | H7: 349712.9747 | I7: 342368.9747 | J7: 335024.9747 | K7: 327680.9747 | L7: 320336.9747
A8: Custo Operacional | C8: =IF(C4<=$C$2,Formulário!$R$24*Formulário!$I$6,"") -> 164787.9747 | D8: =IF(D4<=$C$2,Formulário!$R$24*Formulário!$I$6,"") -> 164787.9747 | E8: =IF(E4<=$C$2,Formulário!$R$24*Formulário!$I$6,"") -> 164787.9747 | F8: =IF(F4<=$C$2,Formulário!$R$24*Formulário!$I$6,"") -> 164787.9747 | G8: =IF(G4<=$C$2,Formulário!$R$24*Formulário!$I$6,"") -> 164787.9747 | H8: =IF(H4<=$C$2,Formulário!$R$24*Formulário!$I$6,"") -> 164787.9747 | I8: =IF(I4<=$C$2,Formulário!$R$24*Formulário!$I$6,"") -> 164787.9747 | J8: =IF(J4<=$C$2,Formulário!$R$24*Formulário!$I$6,"") -> 164787.9747 | K8: =IF(K4<=$C$2,Formulário!$R$24*Formulário!$I$6,"") -> 164787.9747 | L8: =IF(L4<=$C$2,Formulário!$R$24*Formulário!$I$6,"") -> 164787.9747
A9: Custo de Manutenção | C9: =IF(C4<=$C$2,Formulário!$R$30*Formulário!$I$6,"") -> 66605 | D9: =IF(D4<=$C$2,Formulário!$R$30*Formulário!$I$6,"") -> 66605 | E9: =IF(E4<=$C$2,Formulário!$R$30*Formulário!$I$6,"") -> 66605 | F9: =IF(F4<=$C$2,Formulário!$R$30*Formulário!$I$6,"") -> 66605 | G9: =IF(G4<=$C$2,Formulário!$R$30*Formulário!$I$6,"") -> 66605 | H9: =IF(H4<=$C$2,Formulário!$R$30*Formulário!$I$6,"") -> 66605 | I9: =IF(I4<=$C$2,Formulário!$R$30*Formulário!$I$6,"") -> 66605 | J9: =IF(J4<=$C$2,Formulário!$R$30*Formulário!$I$6,"") -> 66605 | K9: =IF(K4<=$C$2,Formulário!$R$30*Formulário!$I$6,"") -> 66605 | L9: =IF(L4<=$C$2,Formulário!$R$30*Formulário!$I$6,"") -> 66605
A10: Custo de Financiamento | C10: =C32 -> 118320 | D10: =D32 -> 110976 | E10: =E32 -> 103632 | F10: =F32 -> 96288 | G10: =G32 -> 88944 | H10: =C10 -> 118320 | I10: =D10 -> 110976 | J10: =E10 -> 103632 | K10: =F10 -> 96288 | L10: =G10 -> 88944
A11: Entradas de Caixa (financiamento) | B11: =B$5*$B$23 -> 408000 | C11: 0 | D11: 0 | E11: 0 | F11: 0 | G11: =B11 -> 408000 | H11: 0 | I11: 0 | J11: 0 | K11: 0 | L11: 0
A12: Entradas de Caixa (valor de revenda) | C12: 0 | D12: 0 | E12: 0 | F12: 0 | G12: =$B$5*$B$20 -> 153000 | H12: 0 | I12: 0 | J12: 0 | K12: 0 | L12: =G12 -> 153000
A13: Saídas de Caixa | B13: =B5 -> 510000 | C13: =C7 -> 349712.9747 | D13: =D7 -> 342368.9747 | E13: =E7 -> 335024.9747 | F13: =F7 -> 327680.9747 | G13: =G7+G5 -> 830336.9747 | H13: =H7 -> 349712.9747 | I13: 342368.9747 | J13: 335024.9747 | K13: 327680.9747 | L13: 320336.9747
A14: Fluxo de Caixa Anual | B14: =(B11+B12)-B13 -> -102000 | C14: -349712.9747 | D14: -342368.9747 | E14: -335024.9747 | F14: -327680.9747 | G14: -269336.9747 | H14: =(H11+H12)-H13 -> -349712.9747 | I14: -342368.9747 | J14: -335024.9747 | K14: -327680.9747 | L14: -167336.9747
A15: Fluxo de Caixa Acumulado | B15: =B14 -> -102000 | C15: =B15+C14 -> -451712.9747 | D15: -794081.9494 | E15: -1129106.924 | F15: -1456787.899 | G15: -1726124.873 | H15: -2075837.848 | I15: -2418206.823 | J15: -2753231.797 | K15: -3080912.772 | L15: -3248249.747
A16: Fluxo YTD | C16: =C14/((1+$B$25)^(FluxoDeCaixa!C4)) -> -325157.1098 | D16: =D14/((1+$B$25)^(FluxoDeCaixa!D4)) -> -295976.6298 | E16: =E14/((1+$B$25)^(FluxoDeCaixa!E4)) -> -269290.9204 | F16: =F14/((1+$B$25)^(FluxoDeCaixa!F4)) -> -244893.5031 | G16: =G14/((1+$B$25)^(FluxoDeCaixa!G4)) -> -187155.9005 | H16: =H14/((1+$B$25)^(FluxoDeCaixa!H4)) -> -225943.9935 | I16: =I14/((1+$B$25)^(FluxoDeCaixa!I4)) -> -205667.1674 | J16: =J14/((1+$B$25)^(FluxoDeCaixa!J4)) -> -187123.8984 | K16: =K14/((1+$B$25)^(FluxoDeCaixa!K4)) -> -170170.7095 | L16: =L14/((1+$B$25)^(FluxoDeCaixa!L4)) -> -80799.18964
A17: VP do Custo Anual Total em 10 anos | B17: =SUM(C16:L16)-$B$5 -> -2702179.022
A19: Linha de financiamento para ônibus a diesel
A20: Valor de revenda (% aquisição) | B20: =C20/100 -> 0.3 | C20: 30 | E20: Depreciação anual | F20: =(1-B20)/5 -> 0.14
A21: Custo de Capital Próprio | B21: =C21/1000 -> 0.14 | C21: 140
A22: Custo de Financiamento | B22: =C22/1000 -> 0.09 | C22: 90
A23: Percentual Financiado (%) | B23: =C23/1000 -> 0.8 | C23: 800
A24: Fator de Tributos no K de Terceiros (T) | B24: 0.34
A25: Custo Médio Ponderado de Capital | B25: =(1-$B$23)*$B$21+$B$23*$B$22*(1-B24) -> 0.07552
A26: Nº de períodos financiamento (anos) | B26: 5
A28: Financiamento | C28: =$B$5*$B$23 -> 408000
A29: Dívida | C29: =C28 -> 408000 | D29: =C29-C30 -> 326400 | E29: =D29-D30 -> 244800 | F29: 163200 | G29: 81600 | H29: 0 | I29: 0 | J29: 0 | K29: 0 | L29: 0
A30: Amortização | C30: =IF(C$4<=$B$26,$C$28/$B$26,0) -> 81600 | D30: 81600 | E30: 81600 | F30: 81600 | G30: 81600 | H30: 0 | I30: 0 | J30: 0 | K30: 0 | L30: 0
A31: Despesa financeira | C31: =C29*$B$22 -> 36720 | D31: =D29*$B$22 -> 29376 | E31: 22032 | F31: 14688 | G31: 7344 | H31: 0 | I31: 0 | J31: 0 | K31: 0 | L31: 0
A32: Parcela Financiamento | C32: =C31+C30 -> 118320 | D32: =D31+D30 -> 110976 | E32: =E31+E30 -> 103632 | F32: 96288 | G32: 88944 | H32: 0 | I32: 0 | J32: 0 | K32: 0 | L32: 0
A34: Análise financeira por ônibus: Biometano
A35: Período | B35: 0 | C35: 1 | D35: 2 | E35: 3 | F35: 4 | G35: 5 | H35: 6 | I35: 7 | J35: 8 | K35: 9 | L35: 10
A36: Custo de Aquisição | B36: =IF(CapexNovoUsado=3,Formulário!T21,IF(CapexNovoUsado=1,Formulário!T17,Formulário!T19)) -> 550000 | D36: 0 | E36: 0 | F36: 0 | G36: =IF(CapexNovoUsado=3,0,B36) -> 550000 | H36: 0 | I36: 0 | J36: 0 | K36: 0 | L36: 0
A37: Custo de Infraestrutura de recarga | D37: 0 | E37: 0 | F37: 0 | G37: 0 | H37: 0 | I37: 0 | J37: 0 | K37: 0 | L37: 0
A38: Custo Variável Anual | C38: =SUM(C39:C41) -> 327955.625 | D38: =SUM(D39:D41) -> 320035.625 | E38: =SUM(E39:E41) -> 312115.625 | F38: 304195.625 | G38: 296275.625 | H38: 327955.625 | I38: 320035.625 | J38: 312115.625 | K38: 304195.625 | L38: 296275.625
A39: Custo Operacional | C39: =IF(C35<=$C$2,Formulário!$T$24*Formulário!$I$6,"") -> 134615.625 | D39: =IF(D35<=$C$2,Formulário!$T$24*Formulário!$I$6,"") -> 134615.625 | E39: =IF(E35<=$C$2,Formulário!$T$24*Formulário!$I$6,"") -> 134615.625 | F39: =IF(F35<=$C$2,Formulário!$T$24*Formulário!$I$6,"") -> 134615.625 | G39: =IF(G35<=$C$2,Formulário!$T$24*Formulário!$I$6,"") -> 134615.625 | H39: =IF(H35<=$C$2,Formulário!$T$24*Formulário!$I$6,"") -> 134615.625 | I39: =IF(I35<=$C$2,Formulário!$T$24*Formulário!$I$6,"") -> 134615.625 | J39: =IF(J35<=$C$2,Formulário!$T$24*Formulário!$I$6,"") -> 134615.625 | K39: =IF(K35<=$C$2,Formulário!$T$24*Formulário!$I$6,"") -> 134615.625 | L39: =IF(L35<=$C$2,Formulário!$T$24*Formulário!$I$6,"") -> 134615.625
A40: Custo de Manutenção | C40: =IF(C35<=$C$2,Formulário!$T$30*Formulário!$I$6,"") -> 65740 | D40: =IF(D35<=$C$2,Formulário!$T$30*Formulário!$I$6,"") -> 65740 | E40: =IF(E35<=$C$2,Formulário!$T$30*Formulário!$I$6,"") -> 65740 | F40: =IF(F35<=$C$2,Formulário!$T$30*Formulário!$I$6,"") -> 65740 | G40: =IF(G35<=$C$2,Formulário!$T$30*Formulário!$I$6,"") -> 65740 | H40: =IF(H35<=$C$2,Formulário!$T$30*Formulário!$I$6,"") -> 65740 | I40: =IF(I35<=$C$2,Formulário!$T$30*Formulário!$I$6,"") -> 65740 | J40: =IF(J35<=$C$2,Formulário!$T$30*Formulário!$I$6,"") -> 65740 | K40: =IF(K35<=$C$2,Formulário!$T$30*Formulário!$I$6,"") -> 65740 | L40: =IF(L35<=$C$2,Formulário!$T$30*Formulário!$I$6,"") -> 65740
A41: Custo de Financiamento | C41: =C63 -> 127600 | D41: =D63 -> 119680 | E41: 111760 | F41: 103840 | G41: 95920 | H41: =C41 -> 127600 | I41: =D41 -> 119680 | J41: =E41 -> 111760 | K41: =F41 -> 103840 | L41: =G41 -> 95920
A42: Entradas de Caixa (financiamento) | B42: =B$36*$B$54 -> 440000 | C42: 0 | D42: 0 | E42: 0 | F42: 0 | G42: =B42 -> 440000 | H42: 0 | I42: 0 | J42: 0 | K42: 0 | L42: 0
A43: Entradas de Caixa (valor de revenda) | C43: 0 | D43: 0 | E43: 0 | F43: 0 | G43: =$B$36*$B$51 -> 0 | H43: 0 | I43: 0 | J43: 0 | K43: 0 | L43: =$B$36*$B$51 -> 0
A44: Saídas de Caixa | B44: =B36 -> 550000 | C44: =C38 -> 327955.625 | D44: =D38 -> 320035.625 | E44: =E38 -> 312115.625 | F44: =F38 -> 304195.625 | G44: =G38+G36 -> 846275.625 | H44: =H38 -> 327955.625 | I44: =I38 -> 320035.625 | J44: 312115.625 | K44: 304195.625 | L44: 296275.625
A45: Fluxo de Caixa Anual | B45: =(B42+B43)-B44 -> -110000 | C45: =(C42+C43)-C44 -> -327955.625 | D45: -320035.625 | E45: -312115.625 | F45: -304195.625 | G45: -406275.625 | H45: -327955.625 | I45: -320035.625 | J45: -312115.625 | K45: -304195.625 | L45: -296275.625
A46: Fluxo de Caixa Acumulado | B46: =B45 -> -110000 | C46: =B46+C45 -> -437955.625 | D46: -757991.25 | E46: -1070106.875 | F46: -1374302.5 | G46: -1780578.125 | H46: -2108533.75 | I46: -2428569.375 | J46: -2740685 | K46: -3044880.625 | L46: -3341156.25
A47: Fluxo YTD | C47: =C45/((1+$B$56)^(FluxoDeCaixa!C35)) -> -304644.2472 | D47: =D45/((1+$B$56)^(FluxoDeCaixa!D35)) -> -276155.7685 | E47: =E45/((1+$B$56)^(FluxoDeCaixa!E35)) -> -250178.0497 | F47: =F45/((1+$B$56)^(FluxoDeCaixa!F35)) -> -226498.0945 | G47: =G45/((1+$B$56)^(FluxoDeCaixa!G35)) -> -281002.5451 | H47: =H45/((1+$B$56)^(FluxoDeCaixa!H35)) -> -210708.7001 | I47: =I45/((1+$B$56)^(FluxoDeCaixa!I35)) -> -191004.5029 | J47: =J45/((1+$B$56)^(FluxoDeCaixa!J35)) -> -173036.8852 | K47: =K45/((1+$B$56)^(FluxoDeCaixa!K35)) -> -156658.5272 | L47: =L45/((1+$B$56)^(FluxoDeCaixa!L35)) -> -141734.278
A48: VP do Custo Anual Total em 10 anos | B48: =SUM(C47:L47)-$B$36 -> -2761621.598
A50: Linha de financiamento para ônibus a biometano
A51: Valor de revenda (% aquisição) | B51: =C51/100 -> 0 | C51: 0 | E51: Depreciação anual | F51: =(1-B51)/5 -> 0.2
A52: Custo de Capital Próprio | B52: =C52/1000 -> 0.145 | C52: 145
A53: Custo de Financiamento | B53: =C53/1000 -> 0.09 | C53: 90
A54: Percentual Financiado (%) | B54: =C54/1000 -> 0.8 | C54: 800
A55: Fator de Tributos no K de Terceiros (T) | B55: 0.34
A56: Custo Médio Ponderado de Capital | B56: =(1-$B$54)*$B$52+$B$54*$B$53*(1-$B$55) -> 0.07652
A57: Nº de períodos financiamento (anos) | B57: 5
A59: Financiamento | C59: =$B$36*$B$54 -> 440000
A60: Dívida | C60: =C59 -> 440000 | D60: =C60-C61 -> 352000 | E60: 264000 | F60: 176000 | G60: 88000 | H60: 0 | I60: 0 | J60: 0 | K60: 0 | L60: 0
A61: Amortização | C61: =IF(C$35<=$B$57,$C$59/$B$57,0) -> 88000 | D61: =IF(D$35<=$B$57,$C$59/$B$57,0) -> 88000 | E61: 88000 | F61: 88000 | G61: 88000 | H61: 0 | I61: 0 | J61: 0 | K61: 0 | L61: 0
A62: Despesa financeira | C62: =C60*$B$53 -> 39600 | D62: =D60*$B$53 -> 31680 | E62: =E60*$B$53 -> 23760 | F62: 15840 | G62: 7920 | H62: 0 | I62: 0 | J62: 0 | K62: 0 | L62: 0
A63: Parcela Financiamento | C63: =C62+C61 -> 127600 | D63: =D62+D61 -> 119680 | E63: =E62+E61 -> 111760 | F63: 103840 | G63: 95920 | H63: 0 | I63: 0 | J63: 0 | K63: 0 | L63: 0
A65: Análise financeira comparativa dos ônibus: Fluxo(Biometano) - Fluxo (Diesel)
A66: Período | C66: 1 | D66: 2 | E66: 3 | F66: 4 | G66: 5 | H66: 6 | I66: 7 | J66: 8 | K66: 9 | L66: 10 | N66: FLUXO > 0 | O66: FLUXO < 0 | P66: PAYBACK
A67: Fluxo de Caixa Anual | B67: =(B45)-(B14) -> -8000 | C67: =(C45)-(C14) -> 21757.34968 | D67: 22333.34968 | E67: 22909.34968 | F67: 23485.34968 | G67: -136938.6503 | H67: 21757.34968 | I67: 22333.34968 | J67: 22909.34968 | K67: 23485.34968 | L67: -128938.6503 | N67: =SUMIF(B67:L67,">0",B67:L67) -> 180970.7975 | O67: =SUMIF(B67:L67,"<0",B67:L67) -> -273877.3006 | P67: =N67+O67 -> -92906.50316
A68: Fluxo YTD | B68: =B67 -> -8000 | C68: =(C47)-(C16) -> 20512.86255 | D68: 19820.86132 | E68: 19112.87074 | F68: 18395.40853 | G68: -93846.64466 | H68: 15235.29345 | I68: 14662.66452 | J68: 14087.01322 | K68: 13512.18238 | L68: -60935.08835 | N68: =SUMIF(B68:L68,">0",B68:L68) -> 135339.1567 | O68: =SUMIF(B68:L68,"<0",B68:L68) -> -162781.733 | P68: =N68+O68 -> -27442.5763
A69: VPL | B69: =SUM(C68:L68)+B67 -> -27442.5763
A70: TIR | B70: =IRR(B67:L67,0.2) -> 0.2161931893
A71: =IF($P$68<0,"Estimativa de Payback > 10 anos",CONCATENATE("Estimativa de Payback de ",IFERROR(LARGE(C73:L73,1),0)," anos")) -> Estimativa de Payback > 10 anos | B71: =O68 -> -162781.733 | C71: =IF(C68>=0,C68,0) -> 20512.86255 | D71: 19820.86132 | E71: 19112.87074 | F71: 18395.40853 | G71: 0 | H71: 15235.29345 | I71: 14662.66452 | J71: 14087.01322 | K71: 13512.18238 | L71: 0
B72: =B71 -> -162781.733 | C72: =B72+C71 -> -142268.8705 | D72: =C72+D71 -> -122448.0091 | E72: -103335.1384 | F72: -84939.72987 | G72: -84939.72987 | H72: -69704.43642 | I72: -55041.77189 | J72: -40954.75868 | K72: -27442.5763 | L72: -27442.5763
B73: =IF($P$68<0,"> 10",IF(B$72<0,0,"")) -> > 10 | C73: =IF($P$68<0,"> 10",IF(C$72<0,C$66,"")) -> > 10 | D73: =IF($P$68<0,"> 10",IF(D$72<0,D$66,"")) -> > 10 | E73: > 10 | F73: > 10 | G73: > 10 | H73: > 10 | I73: > 10 | J73: > 10 | K73: > 10 | L73: > 10

Sheet FatorEmissao
P1: Fatores de emissão utilizados para o óleo diesel
B2: Abril | C2: Outubro | P2: Decisão em 13/08: corrigir a fórmula para o cálculo de emissões de CO2-eq | U2: campos para alteração
A3: 1995 | P3: Fator de emissão CO2-eq = FE(CO2) + FE(CH4) + FE(N2O)
A4: 1996 | B4: 4.46 | C4: 4.37 | P4: Poluente | Q4: Unidade
A5: 1997 | B5: 3.93 | C5: 4 | P5: CO2 | Q5: tCO2-eq/10³tep | R5: 3070
A6: 1998 | B6: 4.4 | C6: 4.36 | E6: Idade média da frota de ônibus urbanos municipais nas princpais capitais | P6: CH4 | Q6: tCO2-eq/10³tep | R6: 2.638
A7: 1999 | B7: 4.33 | C7: 4.83 | E7: Fonte: Anuário NTU (2018) - pág. 52 | P7: N2O | Q7: tCO2-eq/10³tep | R7: 7.788
A8: 2000 | B8: 4.83 | C8: 5.15 | P8: Total | Q8: tCO2-eq/10³tep | R8: =SUM(R5:R7) -> 3080.426
A9: 2001 | B9: 4.92 | C9: 5.09
A10: 2002 | B10: 5.6 | C10: 5.69 | P10: Fator de conversão
A11: 2003 | B11: 5.73 | C11: 5.6 | P11: diesel | Q11: tep/m³ | R11: 0.848
A12: 2004 | B12: 5.44 | C12: 5.32
A13: 2005 | B13: 5.4 | C13: 5.38 | P13: Tabela 5 e Tabela 19 - MMA(2014): Inventário Nacional de Emissões Atmosféricas por Veículos Automotores Rodoviários 2013
A14: 2006 | B14: 5.53 | C14: 5.39 | P14: Rendimento dos ônibus
A15: 2007 | B15: 5.24 | C15: 5.07 | P15: km/Ldiesel | Q15: 2.3
A16: 2008 | B16: 5.1 | C16: 5.07
A17: 2009 | B17: 4.59 | C17: 4.62 | P17: Fator emissão CO
A18: 2010 | B18: 4.85 | C18: 4.61 | R18: g/km | S18: g/L
A19: 2011 | B19: 4.22 | C19: 4.2 | P19: CO | Q19: Tabela 19 | R19: 0.44 | S19: =R19*Q15 -> 1.012
A20: 2012 | B20: 4.24 | C20: 4.25
A21: 2013 | B21: 4.42 | C21: 4.47 | P21: Fator emissão MP = MP10(pneus, freios) + MP10pista + MPcomb
A22: 2014 | B22: 4.63 | C22: 4.67 | R22: g/km | S22: g/L
A23: 2015 | B23: 4.66 | C23: 4.83 | P23: MPcomb | Q23: Tabela 19 | R23: 0.02 | S23: =R23*$Q$15 -> 0.046
A24: 2016 | B24: 5.01 | C24: 5.03 | P24: MP10(pneu, freios) | Q24: Tabela 05 | R24: 0.59 | S24: =R24*$Q$15 -> 1.357
A25: 2017 | B25: 5.42 | C25: 5.58 | P25: MP10pista | Q25: Tabela 05 | R25: 0.038 | S25: =R25*$Q$15 -> 0.0874
A26: Média | B26: =AVERAGE(B4:B25) -> 4.861363636 | C26: =AVERAGE(C4:C25) -> 4.89 | D26: =AVERAGE(B26:C26) -> 4.875681818 | R26: =SUM(R23:R25) -> 0.648 | S26: =SUM(S23:S25) -> 1.4904
A27: Desvio Padrão | B27: =_xlfn.STDEV.S(B4:B25) -> 0.5161606935 | C27: =_xlfn.STDEV.S(C4:C25) -> 0.4927860542
A28: Variância | B28: =_xlfn.VAR.S(B4:B25) -> 0.2664218615 | C28: =_xlfn.VAR.S(C4:C25) -> 0.2428380952 | P28: Fator de emissão NOX
A29: Menor | B29: =SMALL(B4:B25,1) -> 3.93 | C29: =SMALL(C4:C25,1) -> 4 | R29: g/km | S29: g/L
A30: Maior | B30: =LARGE(B4:B25,1) -> 5.73 | C30: =LARGE(C4:C25,1) -> 5.69 | P30: NOX | Q30: Tabela 19 | R30: 2.103 | S30: =R30*2.3 -> 4.8369
P32: Fator de emissão usado para o biometano
P33: Fator do CH4 | Q33: Kg CO₂-eq/m³ CH4 | R33: 16.0384
P34: Consumo CH4 | Q34: (m³)/ano | R34: =Formulário!$I$6/(SpinnerS25/100)*Formulário!$I$12 -> 906250
P35: Emissões | Q35: ton CO₂-eq/ano CH4 | R35: =R34*R33/1000 -> 14534.8

Sheet SeriePreçoDiesel
B1: Rótulos de Linha | C1: 2013-01-01 | D1: 2013-02-01 | E1: 2013-03-01 | F1: 2013-04-01 | G1: 2013-05-01 | H1: 2013-06-01 | I1: 2013-07-01 | J1: 2013-08-01 | K1: 2013-09-01 | L1: 2013-10-01 | M1: 2013-11-01 | N1: 2013-12-01 | O1: 2014-01-01 | P1: 2014-02-01 | Q1: 2014-03-01 | R1: 2014-04-01 | S1: 2014-05-01 | T1: 2014-06-01 | U1: 2014-07-01 | V1: 2014-08-01 | W1: 2014-09-01 | X1: 2014-10-01 | Y1: 2014-11-01 | Z1: 2014-12-01 | AA1: 2015-01-01 | AB1: 2015-02-01 | AC1: 2015-03-01 | AD1: 2015-04-01 | AE1: 2015-05-01 | AF1: 2015-06-01 | AG1: 2015-07-01 | AH1: 2015-08-01 | AI1: 2015-09-01 | AJ1: 2015-10-01 | AK1: 2015-11-01 | AL1: 2015-12-01 | AM1: 2016-01-01 | AN1: 2016-02-01 | AO1: 2016-03-01 | AP1: 2016-04-01 | AQ1: 2016-05-01 | AR1: 2016-06-01 | AS1: 2016-07-01 | AT1: 2016-08-01 | AU1: 2016-09-01 | AV1: 2016-10-01 | AW1: 2016-11-01 | AX1: 2016-12-01 | AY1: 2017-01-01 | AZ1: 2017-02-01 | BA1: 2017-03-01 | BB1: 2017-04-01 | BC1: 2017-05-01 | BD1: 2017-06-01 | BE1: 2017-07-01 | BF1: 2017-08-01 | BG1: 2017-09-01 | BH1: 2017-10-01 | BI1: 2017-11-01 | BJ1: 2017-12-01 | BK1: 2018-01-01 | BL1: 2018-02-01 | BM1: 2018-03-01 | BN1: 2018-04-01 | BO1: 2018-05-01 | BP1: 2018-06-01 | BQ1: 2018-07-01 | BR1: 2018-08-01 | BS1: 2018-09-01 | BT1: 2018-10-01 | BU1: 2018-11-01 | BV1: 2018-12-01 | BW1: 2019-01-01 | BX1: 2019-02-01 | BY1: 2019-03-01 | BZ1: 2019-04-01 | CA1: 2019-05-01 | CB1: 2019-06-01 | CC1: 2019-07-01 | CD1: 2019-08-01 | CE1: 2019-09-01 | CF1: 2019-10-01 | CG1: 2019-11-01 | CH1: 2019-12-01 | CI1: 2020-01-01
B2: ACRE | C2: 2.286 | D2: 2.32 | E2: 2.333 | F2: 2.396 | G2: 2.409 | H2: 2.387 | I2: 2.385 | J2: 2.405 | K2: 2.401 | L2: 2.415 | M2: 2.441 | N2: 2.51 | O2: 2.572 | P2: 2.572 | Q2: 2.572 | R2: 2.602 | S2: 2.575 | T2: 2.572 | U2: 2.563 | V2: 2.569 | W2: 2.561 | X2: 2.549 | Y2: 2.616 | Z2: 2.69 | AA2: 2.71 | AB2: 2.793 | AC2: 2.851 | AD2: 2.859 | AE2: 2.869 | AF2: 2.87 | AG2: 2.88 | AH2: 2.916 | AI2: 2.898 | AJ2: 2.968 | AK2: 3.083 | AL2: 3.092 | AM2: 3.104 | AN2: 3.097 | AO2: 3.08 | AP2: 3.068 | AQ2: 3.073 | AR2: 3.066 | AS2: 3.064 | AT2: 3.049 | AU2: 3.064 | AV2: 3.074 | AW2: 3.046 | AX2: 3.015 | AY2: 3.127 | AZ2: 3.091 | BA2: 3.001 | BB2: 2.952 | BC2: 2.96 | BD2: 2.912 | BE2: 2.884 | BF2: 3.103 | BG2: 3.175 | BH2: 3.251 | BI2: 3.318 | BJ2: 3.378 | BK2: 3.501 | BL2: 3.453 | BM2: 3.418 | BN2: 3.638 | BO2: 3.811 | BP2: 3.715 | BQ2: 3.639 | BR2: 3.623 | BS2: 3.71 | BT2: 3.864 | BU2: 3.941 | BV2: 3.865 | BW2: 3.811 | BX2: 3.801 | BY2: 3.925 | BZ2: 3.884 | CA2: 3.935 | CB2: 3.937 | CC2: 3.909 | CD2: 3.852 | CE2: 3.915 | CF2: 3.941 | CG2: 3.924 | CH2: 3.948 | CI2: 3.988
B3: ALAGOAS | C3: 1.917 | D3: 1.956 | E3: 2.021 | F3: 2.059 | G3: 2.059 | H3: 2.059 | I3: 2.055 | J3: 2.056 | K3: 2.059 | L3: 2.052 | M3: 2.055 | N3: 2.135 | O3: 2.183 | P3: 2.185 | Q3: 2.189 | R3: 2.187 | S3: 2.184 | T3: 2.2 | U3: 2.2 | V3: 2.206 | W3: 2.209 | X3: 2.206 | Y3: 2.252 | Z3: 2.312 | AA3: 2.324 | AB3: 2.41 | AC3: 2.488 | AD3: 2.491 | AE3: 2.498 | AF3: 2.503 | AG3: 2.511 | AH3: 2.523 | AI3: 2.53 | AJ3: 2.592 | AK3: 2.644 | AL3: 2.661 | AM3: 2.697 | AN3: 2.722 | AO3: 2.744 | AP3: 2.739 | AQ3: 2.736 | AR3: 2.721 | AS3: 2.716 | AT3: 2.722 | AU3: 2.712 | AV3: 2.704 | AW3: 2.637 | AX3: 2.666 | AY3: 2.741 | AZ3: 2.745 | BA3: 2.67 | BB3: 2.638 | BC3: 2.636 | BD3: 2.62 | BE3: 2.549 | BF3: 2.709 | BG3: 2.786 | BH3: 2.907 | BI3: 2.947 | BJ3: 2.966 | BK3: 3.081 | BL3: 3.081 | BM3: 3.062 | BN3: 3.167 | BO3: 3.416 | BP3: 3.234 | BQ3: 3.163 | BR3: 3.168 | BS3: 3.371 | BT3: 3.499 | BU3: 3.478 | BV3: 3.325 | BW3: 3.198 | BX3: 3.254 | BY3: 3.392 | BZ3: 3.368 | CA3: 3.369 | CB3: 3.39 | CC3: 3.297 | CD3: 3.249 | CE3: 3.388 | CF3: 3.507 | CG3: 3.491 | CH3: 3.562 | CI3: 3.544
B4: AMAPA | C4: 2.008 | D4: 2.048 | E4: 2.128 | F4: 2.125 | G4: 2.13 | H4: 2.152 | I4: 2.142 | J4: 2.133 | K4: 2.129 | L4: 2.131 | M4: 2.134 | N4: 2.218 | O4: 2.294 | P4: 2.305 | Q4: 2.308 | R4: 2.307 | S4: 2.318 | T4: 2.34 | U4: 2.349 | V4: 2.355 | W4: 2.358 | X4: 2.355 | Y4: 2.402 | Z4: 2.466 | AA4: 2.491 | AB4: 2.602 | AC4: 2.658 | AD4: 2.656 | AE4: 2.639 | AF4: 2.643 | AG4: 2.707 | AH4: 2.738 | AI4: 2.798 | AJ4: 2.871 | AK4: 2.916 | AL4: 2.926 | AM4: 2.932 | AN4: 3.091 | AO4: 3.227 | AP4: 3.265 | AQ4: 3.285 | AR4: 3.269 | AS4: 3.269 | AT4: 3.27 | AU4: 3.286 | AV4: 3.31 | AW4: 3.303 | AX4: 3.299 | AY4: 3.342 | AZ4: 3.299 | BA4: 3.151 | BB4: 3.147 | BC4: 3.132 | BD4: 2.998 | BE4: 2.958 | BF4: 3.099 | BG4: 3.25 | BH4: 3.351 | BI4: 3.427 | BJ4: 3.582 | BK4: 3.629 | BL4: 3.622 | BM4: 3.585 | BN4: 3.715 | BO4: 3.896 | BP4: 3.705 | BQ4: 3.398 | BR4: 3.369 | BS4: 3.579 | BT4: 3.666 | BU4: 3.59 | BV4: 3.448 | BW4: 3.617 | BX4: 3.733 | BY4: 3.682 | BZ4: 3.706 | CA4: 3.836 | CB4: 3.684 | CC4: 3.63 | CD4: 3.664 | CE4: 3.723 | CF4: 3.962 | CG4: 3.947 | CH4: 3.963 | CI4: 3.964
B5: AMAZONAS | C5: 2.011 | D5: 2.075 | E5: 2.12 | F5: 2.146 | G5: 2.145 | H5: 2.145 | I5: 2.138 | J5: 2.134 | K5: 2.14 | L5: 2.138 | M5: 2.138 | N5: 2.243 | O5: 2.305 | P5: 2.322 | Q5: 2.321 | R5: 2.322 | S5: 2.317 | T5: 2.317 | U5: 2.323 | V5: 2.33 | W5: 2.328 | X5: 2.325 | Y5: 2.383 | Z5: 2.434 | AA5: 2.448 | AB5: 2.54 | AC5: 2.605 | AD5: 2.614 | AE5: 2.626 | AF5: 2.633 | AG5: 2.647 | AH5: 2.656 | AI5: 2.66 | AJ5: 2.723 | AK5: 2.8 | AL5: 2.82 | AM5: 2.842 | AN5: 2.864 | AO5: 2.862 | AP5: 2.87 | AQ5: 2.853 | AR5: 2.854 | AS5: 2.86 | AT5: 2.843 | AU5: 2.852 | AV5: 2.848 | AW5: 2.838 | AX5: 2.817 | AY5: 2.935 | AZ5: 2.854 | BA5: 2.774 | BB5: 2.738 | BC5: 2.712 | BD5: 2.647 | BE5: 2.616 | BF5: 2.81 | BG5: 2.989 | BH5: 2.982 | BI5: 3.032 | BJ5: 3.041 | BK5: 3.129 | BL5: 3.154 | BM5: 3.129 | BN5: 3.207 | BO5: 3.333 | BP5: 3.265 | BQ5: 3.15 | BR5: 3.159 | BS5: 3.321 | BT5: 3.475 | BU5: 3.46 | BV5: 3.295 | BW5: 3.228 | BX5: 3.267 | BY5: 3.349 | BZ5: 3.349 | CA5: 3.45 | CB5: 3.392 | CC5: 3.347 | CD5: 3.313 | CE5: 3.421 | CF5: 3.532 | CG5: 3.484 | CH5: 3.517 | CI5: 3.531
B6: BAHIA | C6: 1.865 | D6: 1.951 | E6: 2.011 | F6: 2.045 | G6: 2.037 | H6: 2.031 | I6: 2.034 | J6: 2.027 | K6: 2.021 | L6: 2.017 | M6: 2.022 | N6: 2.131 | O6: 2.175 | P6: 2.176 | Q6: 2.171 | R6: 2.165 | S6: 2.164 | T6: 2.16 | U6: 2.162 | V6: 2.16 | W6: 2.16 | X6: 2.157 | Y6: 2.189 | Z6: 2.268 | AA6: 2.276 | AB6: 2.387 | AC6: 2.45 | AD6: 2.441 | AE6: 2.428 | AF6: 2.432 | AG6: 2.445 | AH6: 2.457 | AI6: 2.471 | AJ6: 2.572 | AK6: 2.645 | AL6: 2.656 | AM6: 2.666 | AN6: 2.679 | AO6: 2.668 | AP6: 2.66 | AQ6: 2.67 | AR6: 2.659 | AS6: 2.661 | AT6: 2.662 | AU6: 2.654 | AV6: 2.644 | AW6: 2.592 | AX6: 2.582 | AY6: 2.679 | AZ6: 2.65 | BA6: 2.558 | BB6: 2.517 | BC6: 2.592 | BD6: 2.544 | BE6: 2.474 | BF6: 2.685 | BG6: 2.754 | BH6: 2.829 | BI6: 2.883 | BJ6: 2.923 | BK6: 3.022 | BL6: 3.009 | BM6: 2.984 | BN6: 3.089 | BO6: 3.279 | BP6: 3.169 | BQ6: 3.098 | BR6: 3.089 | BS6: 3.291 | BT6: 3.405 | BU6: 3.283 | BV6: 3.088 | BW6: 3.025 | BX6: 3.095 | BY6: 3.172 | BZ6: 3.193 | CA6: 3.299 | CB6: 3.238 | CC6: 3.15 | CD6: 3.117 | CE6: 3.207 | CF6: 3.359 | CG6: 3.359 | CH6: 3.375 | CI6: 3.425
B7: CEARA | C7: 1.944 | D7: 1.99 | E7: 2.04 | F7: 2.058 | G7: 2.055 | H7: 2.034 | I7: 2.06 | J7: 2.065 | K7: 2.066 | L7: 2.061 | M7: 2.059 | N7: 2.127 | O7: 2.219 | P7: 2.217 | Q7: 2.213 | R7: 2.22 | S7: 2.242 | T7: 2.229 | U7: 2.252 | V7: 2.276 | W7: 2.287 | X7: 2.28 | Y7: 2.289 | Z7: 2.341 | AA7: 2.356 | AB7: 2.406 | AC7: 2.517 | AD7: 2.527 | AE7: 2.564 | AF7: 2.567 | AG7: 2.573 | AH7: 2.572 | AI7: 2.559 | AJ7: 2.618 | AK7: 2.738 | AL7: 2.737 | AM7: 2.761 | AN7: 2.777 | AO7: 2.79 | AP7: 2.779 | AQ7: 2.775 | AR7: 2.777 | AS7: 2.805 | AT7: 2.815 | AU7: 2.81 | AV7: 2.788 | AW7: 2.773 | AX7: 2.786 | AY7: 2.846 | AZ7: 2.838 | BA7: 2.792 | BB7: 2.696 | BC7: 2.733 | BD7: 2.698 | BE7: 2.655 | BF7: 2.756 | BG7: 2.793 | BH7: 2.875 | BI7: 2.921 | BJ7: 2.982 | BK7: 3.043 | BL7: 3.069 | BM7: 3.073 | BN7: 3.133 | BO7: 3.287 | BP7: 3.181 | BQ7: 3.131 | BR7: 3.137 | BS7: 3.271 | BT7: 3.429 | BU7: 3.474 | BV7: 3.346 | BW7: 3.197 | BX7: 3.235 | BY7: 3.305 | BZ7: 3.352 | CA7: 3.435 | CB7: 3.403 | CC7: 3.334 | CD7: 3.319 | CE7: 3.338 | CF7: 3.477 | CG7: 3.508 | CH7: 3.511 | CI7: 3.565
B8: DISTRITO FEDERAL | C8: 1.95 | D8: 2.051 | E8: 2.178 | F8: 2.137 | G8: 2.119 | H8: 2.113 | I8: 2.117 | J8: 2.119 | K8: 2.121 | L8: 2.126 | M8: 2.127 | N8: 2.224 | O8: 2.231 | P8: 2.24 | Q8: 2.262 | R8: 2.271 | S8: 2.271 | T8: 2.27 | U8: 2.272 | V8: 2.274 | W8: 2.28 | X8: 2.289 | Y8: 2.337 | Z8: 2.375 | AA8: 2.375 | AB8: 2.504 | AC8: 2.492 | AD8: 2.486 | AE8: 2.488 | AF8: 2.491 | AG8: 2.494 | AH8: 2.502 | AI8: 2.542 | AJ8: 2.601 | AK8: 2.653 | AL8: 2.65 | AM8: 2.769 | AN8: 2.808 | AO8: 2.798 | AP8: 2.816 | AQ8: 2.798 | AR8: 2.786 | AS8: 2.774 | AT8: 2.784 | AU8: 2.786 | AV8: 2.773 | AW8: 2.747 | AX8: 2.716 | AY8: 2.903 | AZ8: 2.91 | BA8: 2.794 | BB8: 2.758 | BC8: 2.813 | BD8: 2.745 | BE8: 2.658 | BF8: 2.896 | BG8: 3.111 | BH8: 3.13 | BI8: 3.204 | BJ8: 3.174 | BK8: 3.237 | BL8: 3.185 | BM8: 3.209 | BN8: 3.377 | BO8: 3.555 | BP8: 3.256 | BQ8: 3.226 | BR8: 3.231 | BS8: 3.414 | BT8: 3.546 | BU8: 3.451 | BV8: 3.185 | BW8: 3.198 | BX8: 3.254 | BY8: 3.352 | BZ8: 3.359 | CA8: 3.475 | CB8: 3.34 | CC8: 3.269 | CD8: 3.276 | CE8: 3.407 | CF8: 3.502 | CG8: 3.49 | CH8: 3.513 | CI8: 3.579
B9: ESPIRITO SANTO | C9: 1.922 | D9: 2.029 | E9: 2.031 | F9: 2.085 | G9: 2.09 | H9: 2.09 | I9: 2.068 | J9: 2.063 | K9: 2.049 | L9: 2.043 | M9: 2.05 | N9: 2.15 | O9: 2.178 | P9: 2.211 | Q9: 2.207 | R9: 2.216 | S9: 2.224 | T9: 2.217 | U9: 2.174 | V9: 2.172 | W9: 2.187 | X9: 2.19 | Y9: 2.219 | Z9: 2.252 | AA9: 2.266 | AB9: 2.406 | AC9: 2.474 | AD9: 2.455 | AE9: 2.474 | AF9: 2.467 | AG9: 2.471 | AH9: 2.481 | AI9: 2.487 | AJ9: 2.575 | AK9: 2.627 | AL9: 2.641 | AM9: 2.653 | AN9: 2.659 | AO9: 2.655 | AP9: 2.651 | AQ9: 2.651 | AR9: 2.653 | AS9: 2.657 | AT9: 2.658 | AU9: 2.687 | AV9: 2.662 | AW9: 2.613 | AX9: 2.625 | AY9: 2.728 | AZ9: 2.705 | BA9: 2.644 | BB9: 2.601 | BC9: 2.651 | BD9: 2.611 | BE9: 2.563 | BF9: 2.808 | BG9: 2.857 | BH9: 2.911 | BI9: 2.931 | BJ9: 2.928 | BK9: 2.941 | BL9: 2.955 | BM9: 2.973 | BN9: 3.002 | BO9: 3.175 | BP9: 2.971 | BQ9: 2.909 | BR9: 2.914 | BS9: 3.142 | BT9: 3.238 | BU9: 3.208 | BV9: 3.003 | BW9: 2.96 | BX9: 3.029 | BY9: 3.111 | BZ9: 3.177 | CA9: 3.299 | CB9: 3.197 | CC9: 3.117 | CD9: 3.089 | CE9: 3.178 | CF9: 3.338 | CG9: 3.309 | CH9: 3.347 | CI9: 3.386
B10: GOIAS | C10: 1.952 | D10: 2.001 | E10: 2.019 | F10: 2.071 | G10: 2.075 | H10: 2.083 | I10: 2.084 | J10: 2.092 | K10: 2.102 | L10: 2.113 | M10: 2.113 | N10: 2.235 | O10: 2.245 | P10: 2.254 | Q10: 2.263 | R10: 2.276 | S10: 2.285 | T10: 2.273 | U10: 2.271 | V10: 2.283 | W10: 2.282 | X10: 2.294 | Y10: 2.317 | Z10: 2.366 | AA10: 2.372 | AB10: 2.446 | AC10: 2.494 | AD10: 2.542 | AE10: 2.556 | AF10: 2.571 | AG10: 2.583 | AH10: 2.594 | AI10: 2.626 | AJ10: 2.705 | AK10: 2.727 | AL10: 2.728 | AM10: 2.754 | AN10: 2.777 | AO10: 2.775 | AP10: 2.759 | AQ10: 2.738 | AR10: 2.754 | AS10: 2.739 | AT10: 2.738 | AU10: 2.74 | AV10: 2.741 | AW10: 2.727 | AX10: 2.721 | AY10: 2.811 | AZ10: 2.863 | BA10: 2.838 | BB10: 2.812 | BC10: 2.794 | BD10: 2.772 | BE10: 2.736 | BF10: 2.87 | BG10: 2.86 | BH10: 2.897 | BI10: 2.933 | BJ10: 2.948 | BK10: 3.002 | BL10: 2.996 | BM10: 3.004 | BN10: 3.043 | BO10: 3.192 | BP10: 3.215 | BQ10: 3.156 | BR10: 3.171 | BS10: 3.367 | BT10: 3.466 | BU10: 3.379 | BV10: 3.12 | BW10: 3.086 | BX10: 3.143 | BY10: 3.238 | BZ10: 3.252 | CA10: 3.366 | CB10: 3.307 | CC10: 3.222 | CD10: 3.203 | CE10: 3.33 | CF10: 3.421 | CG10: 3.434 | CH10: 3.498 | CI10: 3.535
B11: MARANHAO | C11: 1.946 | D11: 2.012 | E11: 2.031 | F11: 2.023 | G11: 2.073 | H11: 2.07 | I11: 2.067 | J11: 2.073 | K11: 2.067 | L11: 2.061 | M11: 2.065 | N11: 2.119 | O11: 2.162 | P11: 2.176 | Q11: 2.189 | R11: 2.207 | S11: 2.215 | T11: 2.222 | U11: 2.227 | V11: 2.206 | W11: 2.204 | X11: 2.209 | Y11: 2.265 | Z11: 2.309 | AA11: 2.332 | AB11: 2.421 | AC11: 2.501 | AD11: 2.503 | AE11: 2.492 | AF11: 2.515 | AG11: 2.531 | AH11: 2.552 | AI11: 2.563 | AJ11: 2.626 | AK11: 2.691 | AL11: 2.716 | AM11: 2.765 | AN11: 2.787 | AO11: 2.787 | AP11: 2.792 | AQ11: 2.785 | AR11: 2.779 | AS11: 2.774 | AT11: 2.772 | AU11: 2.765 | AV11: 2.768 | AW11: 2.701 | AX11: 2.74 | AY11: 2.8 | AZ11: 2.744 | BA11: 2.66 | BB11: 2.547 | BC11: 2.592 | BD11: 2.544 | BE11: 2.495 | BF11: 2.65 | BG11: 2.761 | BH11: 2.785 | BI11: 2.836 | BJ11: 2.918 | BK11: 2.976 | BL11: 3.033 | BM11: 2.976 | BN11: 3.055 | BO11: 3.2 | BP11: 3.13 | BQ11: 3.177 | BR11: 3.079 | BS11: 3.145 | BT11: 3.192 | BU11: 3.128 | BV11: 3.107 | BW11: 3.069 | BX11: 3.144 | BY11: 3.211 | BZ11: 3.199 | CA11: 3.35 | CB11: 3.315 | CC11: 3.268 | CD11: 3.238 | CE11: 3.25 | CF11: 3.389 | CG11: 3.399 | CH11: 3.429 | CI11: 3.41
B12: MATO GROSSO | C12: 2.167 | D12: 2.216 | E12: 2.261 | F12: 2.265 | G12: 2.251 | H12: 2.253 | I12: 2.253 | J12: 2.254 | K12: 2.238 | L12: 2.249 | M12: 2.24 | N12: 2.316 | O12: 2.381 | P12: 2.397 | Q12: 2.407 | R12: 2.395 | S12: 2.403 | T12: 2.409 | U12: 2.407 | V12: 2.411 | W12: 2.426 | X12: 2.411 | Y12: 2.47 | Z12: 2.521 | AA12: 2.543 | AB12: 2.613 | AC12: 2.686 | AD12: 2.684 | AE12: 2.711 | AF12: 2.724 | AG12: 2.739 | AH12: 2.761 | AI12: 2.766 | AJ12: 2.85 | AK12: 2.904 | AL12: 2.917 | AM12: 2.953 | AN12: 2.942 | AO12: 2.943 | AP12: 2.931 | AQ12: 2.928 | AR12: 2.925 | AS12: 2.91 | AT12: 2.931 | AU12: 2.931 | AV12: 2.907 | AW12: 2.864 | AX12: 2.833 | AY12: 2.941 | AZ12: 2.936 | BA12: 2.863 | BB12: 2.821 | BC12: 2.84 | BD12: 2.773 | BE12: 2.723 | BF12: 2.973 | BG12: 3.08 | BH12: 3.157 | BI12: 3.214 | BJ12: 3.191 | BK12: 3.255 | BL12: 3.232 | BM12: 3.198 | BN12: 3.278 | BO12: 3.501 | BP12: 3.353 | BQ12: 3.331 | BR12: 3.323 | BS12: 3.506 | BT12: 3.657 | BU12: 3.566 | BV12: 3.35 | BW12: 3.317 | BX12: 3.343 | BY12: 3.438 | BZ12: 3.447 | CA12: 3.504 | CB12: 3.429 | CC12: 3.355 | CD12: 3.352 | CE12: 3.476 | CF12: 3.612 | CG12: 3.573 | CH12: 3.619 | CI12: 3.661
B13: MATO GROSSO DO SUL | C13: 2.064 | D13: 2.131 | E13: 2.18 | F13: 2.199 | G13: 2.186 | H13: 2.179 | I13: 2.18 | J13: 2.184 | K13: 2.177 | L13: 2.174 | M13: 2.178 | N13: 2.274 | O13: 2.327 | P13: 2.338 | Q13: 2.338 | R13: 2.333 | S13: 2.325 | T13: 2.326 | U13: 2.324 | V13: 2.331 | W13: 2.321 | X13: 2.329 | Y13: 2.399 | Z13: 2.447 | AA13: 2.462 | AB13: 2.568 | AC13: 2.713 | AD13: 2.72 | AE13: 2.727 | AF13: 2.728 | AG13: 2.632 | AH13: 2.597 | AI13: 2.599 | AJ13: 2.664 | AK13: 2.714 | AL13: 2.708 | AM13: 2.831 | AN13: 2.932 | AO13: 2.909 | AP13: 2.924 | AQ13: 2.919 | AR13: 2.917 | AS13: 2.916 | AT13: 2.909 | AU13: 2.924 | AV13: 2.902 | AW13: 2.888 | AX13: 2.881 | AY13: 3.005 | AZ13: 3.02 | BA13: 2.966 | BB13: 2.898 | BC13: 2.874 | BD13: 2.832 | BE13: 2.767 | BF13: 2.974 | BG13: 3.041 | BH13: 3.071 | BI13: 3.205 | BJ13: 3.269 | BK13: 3.312 | BL13: 3.3 | BM13: 3.29 | BN13: 3.331 | BO13: 3.446 | BP13: 3.175 | BQ13: 3.085 | BR13: 3.12 | BS13: 3.303 | BT13: 3.359 | BU13: 3.261 | BV13: 3.038 | BW13: 3.07 | BX13: 3.128 | BY13: 3.204 | BZ13: 3.209 | CA13: 3.291 | CB13: 3.195 | CC13: 3.103 | CD13: 3.115 | CE13: 3.215 | CF13: 3.341 | CG13: 3.335 | CH13: 3.378 | CI13: 3.422
B14: MINAS GERAIS | C14: 1.966 | D14: 2.021 | E14: 2.076 | F14: 2.105 | G14: 2.106 | H14: 2.098 | I14: 2.102 | J14: 2.094 | K14: 2.099 | L14: 2.1 | M14: 2.095 | N14: 2.184 | O14: 2.242 | P14: 2.254 | Q14: 2.252 | R14: 2.25 | S14: 2.248 | T14: 2.242 | U14: 2.249 | V14: 2.252 | W14: 2.25 | X14: 2.25 | Y14: 2.291 | Z14: 2.342 | AA14: 2.357 | AB14: 2.447 | AC14: 2.508 | AD14: 2.514 | AE14: 2.514 | AF14: 2.518 | AG14: 2.528 | AH14: 2.556 | AI14: 2.583 | AJ14: 2.657 | AK14: 2.68 | AL14: 2.699 | AM14: 2.713 | AN14: 2.721 | AO14: 2.724 | AP14: 2.722 | AQ14: 2.711 | AR14: 2.709 | AS14: 2.705 | AT14: 2.701 | AU14: 2.71 | AV14: 2.695 | AW14: 2.657 | AX14: 2.647 | AY14: 2.759 | AZ14: 2.753 | BA14: 2.658 | BB14: 2.625 | BC14: 2.672 | BD14: 2.613 | BE14: 2.574 | BF14: 2.792 | BG14: 2.876 | BH14: 2.956 | BI14: 3.028 | BJ14: 3.04 | BK14: 3.117 | BL14: 3.094 | BM14: 3.101 | BN14: 3.207 | BO14: 3.406 | BP14: 3.178 | BQ14: 3.152 | BR14: 3.156 | BS14: 3.344 | BT14: 3.445 | BU14: 3.34 | BV14: 3.105 | BW14: 3.12 | BX14: 3.186 | BY14: 3.267 | BZ14: 3.275 | CA14: 3.37 | CB14: 3.294 | CC14: 3.19 | CD14: 3.197 | CE14: 3.302 | CF14: 3.437 | CG14: 3.408 | CH14: 3.449 | CI14: 3.516
B15: PARA | C15: 2.029 | D15: 2.097 | E15: 2.13 | F15: 2.143 | G15: 2.144 | H15: 2.139 | I15: 2.137 | J15: 2.141 | K15: 2.141 | L15: 2.136 | M15: 2.154 | N15: 2.251 | O15: 2.289 | P15: 2.331 | Q15: 2.332 | R15: 2.329 | S15: 2.326 | T15: 2.314 | U15: 2.329 | V15: 2.338 | W15: 2.35 | X15: 2.361 | Y15: 2.397 | Z15: 2.441 | AA15: 2.449 | AB15: 2.608 | AC15: 2.63 | AD15: 2.61 | AE15: 2.63 | AF15: 2.609 | AG15: 2.644 | AH15: 2.658 | AI15: 2.703 | AJ15: 2.769 | AK15: 2.776 | AL15: 2.814 | AM15: 2.843 | AN15: 2.846 | AO15: 2.856 | AP15: 2.859 | AQ15: 2.855 | AR15: 2.856 | AS15: 2.86 | AT15: 2.861 | AU15: 2.868 | AV15: 2.845 | AW15: 2.81 | AX15: 2.837 | AY15: 2.907 | AZ15: 2.819 | BA15: 2.714 | BB15: 2.674 | BC15: 2.715 | BD15: 2.647 | BE15: 2.536 | BF15: 2.704 | BG15: 2.788 | BH15: 2.929 | BI15: 3.05 | BJ15: 3.069 | BK15: 3.179 | BL15: 3.103 | BM15: 3.122 | BN15: 3.211 | BO15: 3.406 | BP15: 3.235 | BQ15: 3.216 | BR15: 3.194 | BS15: 3.409 | BT15: 3.521 | BU15: 3.513 | BV15: 3.257 | BW15: 3.226 | BX15: 3.281 | BY15: 3.354 | BZ15: 3.38 | CA15: 3.422 | CB15: 3.415 | CC15: 3.352 | CD15: 3.409 | CE15: 3.521 | CF15: 3.641 | CG15: 3.604 | CH15: 3.672 | CI15: 3.683
B16: PARAIBA | C16: 1.908 | D16: 1.959 | E16: 2.015 | F16: 2.043 | G16: 2.055 | H16: 2.047 | I16: 2.049 | J16: 2.046 | K16: 2.034 | L16: 2.038 | M16: 2.042 | N16: 2.117 | O16: 2.169 | P16: 2.177 | Q16: 2.174 | R16: 2.175 | S16: 2.173 | T16: 2.193 | U16: 2.197 | V16: 2.192 | W16: 2.2 | X16: 2.204 | Y16: 2.249 | Z16: 2.316 | AA16: 2.328 | AB16: 2.415 | AC16: 2.475 | AD16: 2.491 | AE16: 2.498 | AF16: 2.494 | AG16: 2.508 | AH16: 2.512 | AI16: 2.525 | AJ16: 2.584 | AK16: 2.644 | AL16: 2.658 | AM16: 2.702 | AN16: 2.729 | AO16: 2.736 | AP16: 2.731 | AQ16: 2.728 | AR16: 2.715 | AS16: 2.7 | AT16: 2.706 | AU16: 2.701 | AV16: 2.681 | AW16: 2.635 | AX16: 2.61 | AY16: 2.687 | AZ16: 2.686 | BA16: 2.584 | BB16: 2.569 | BC16: 2.621 | BD16: 2.56 | BE16: 2.525 | BF16: 2.661 | BG16: 2.747 | BH16: 2.825 | BI16: 2.874 | BJ16: 2.908 | BK16: 3 | BL16: 3.019 | BM16: 3.013 | BN16: 3.074 | BO16: 3.268 | BP16: 3.14 | BQ16: 3.083 | BR16: 3.091 | BS16: 3.279 | BT16: 3.426 | BU16: 3.39 | BV16: 3.207 | BW16: 3.099 | BX16: 3.12 | BY16: 3.172 | BZ16: 3.225 | CA16: 3.339 | CB16: 3.271 | CC16: 3.168 | CD16: 3.17 | CE16: 3.27 | CF16: 3.397 | CG16: 3.388 | CH16: 3.415 | CI16: 3.45
B17: PARANA | C17: 1.885 | D17: 1.941 | E17: 2.003 | F17: 2.024 | G17: 2.017 | H17: 2.017 | I17: 2.021 | J17: 2.012 | K17: 2.02 | L17: 2.015 | M17: 2.009 | N17: 2.124 | O17: 2.168 | P17: 2.165 | Q17: 2.158 | R17: 2.16 | S17: 2.161 | T17: 2.161 | U17: 2.155 | V17: 2.16 | W17: 2.158 | X17: 2.161 | Y17: 2.199 | Z17: 2.249 | AA17: 2.261 | AB17: 2.364 | AC17: 2.423 | AD17: 2.416 | AE17: 2.418 | AF17: 2.416 | AG17: 2.432 | AH17: 2.444 | AI17: 2.447 | AJ17: 2.538 | AK17: 2.56 | AL17: 2.565 | AM17: 2.579 | AN17: 2.592 | AO17: 2.588 | AP17: 2.591 | AQ17: 2.575 | AR17: 2.573 | AS17: 2.572 | AT17: 2.554 | AU17: 2.545 | AV17: 2.531 | AW17: 2.476 | AX17: 2.48 | AY17: 2.591 | AZ17: 2.563 | BA17: 2.448 | BB17: 2.394 | BC17: 2.405 | BD17: 2.32 | BE17: 2.254 | BF17: 2.536 | BG17: 2.668 | BH17: 2.724 | BI17: 2.773 | BJ17: 2.786 | BK17: 2.842 | BL17: 2.793 | BM17: 2.78 | BN17: 2.925 | BO17: 3.116 | BP17: 2.896 | BQ17: 2.873 | BR17: 2.868 | BS17: 3.041 | BT17: 3.173 | BU17: 3.079 | BV17: 2.874 | BW17: 2.861 | BX17: 2.924 | BY17: 3.004 | BZ17: 3.013 | CA17: 3.111 | CB17: 3.039 | CC17: 2.949 | CD17: 2.955 | CE17: 3.05 | CF17: 3.194 | CG17: 3.168 | CH17: 3.204 | CI17: 3.247
B18: PERNAMBUCO | C18: 1.904 | D18: 1.948 | E18: 2.017 | F18: 2.035 | G18: 2.041 | H18: 2.042 | I18: 2.04 | J18: 2.041 | K18: 2.032 | L18: 2.026 | M18: 2.023 | N18: 2.118 | O18: 2.169 | P18: 2.193 | Q18: 2.193 | R18: 2.181 | S18: 2.182 | T18: 2.178 | U18: 2.184 | V18: 2.191 | W18: 2.189 | X18: 2.194 | Y18: 2.253 | Z18: 2.299 | AA18: 2.313 | AB18: 2.407 | AC18: 2.466 | AD18: 2.47 | AE18: 2.477 | AF18: 2.488 | AG18: 2.497 | AH18: 2.516 | AI18: 2.566 | AJ18: 2.606 | AK18: 2.679 | AL18: 2.691 | AM18: 2.696 | AN18: 2.728 | AO18: 2.72 | AP18: 2.714 | AQ18: 2.746 | AR18: 2.718 | AS18: 2.71 | AT18: 2.694 | AU18: 2.674 | AV18: 2.658 | AW18: 2.611 | AX18: 2.586 | AY18: 2.676 | AZ18: 2.657 | BA18: 2.577 | BB18: 2.508 | BC18: 2.556 | BD18: 2.474 | BE18: 2.436 | BF18: 2.538 | BG18: 2.666 | BH18: 2.774 | BI18: 2.781 | BJ18: 2.863 | BK18: 3.019 | BL18: 3.012 | BM18: 2.941 | BN18: 3.059 | BO18: 3.284 | BP18: 3.171 | BQ18: 3.152 | BR18: 3.181 | BS18: 3.342 | BT18: 3.485 | BU18: 3.435 | BV18: 3.302 | BW18: 3.212 | BX18: 3.236 | BY18: 3.292 | BZ18: 3.301 | CA18: 3.385 | CB18: 3.337 | CC18: 3.247 | CD18: 3.257 | CE18: 3.251 | CF18: 3.445 | CG18: 3.423 | CH18: 3.477 | CI18: 3.51
B19: PIAUI | C19: 1.977 | D19: 2.029 | E19: 2.08 | F19: 2.11 | G19: 2.109 | H19: 2.103 | I19: 2.102 | J19: 2.099 | K19: 2.103 | L19: 2.101 | M19: 2.103 | N19: 2.187 | O19: 2.236 | P19: 2.236 | Q19: 2.239 | R19: 2.233 | S19: 2.235 | T19: 2.239 | U19: 2.247 | V19: 2.251 | W19: 2.253 | X19: 2.259 | Y19: 2.314 | Z19: 2.379 | AA19: 2.381 | AB19: 2.475 | AC19: 2.542 | AD19: 2.546 | AE19: 2.533 | AF19: 2.542 | AG19: 2.562 | AH19: 2.566 | AI19: 2.611 | AJ19: 2.656 | AK19: 2.728 | AL19: 2.805 | AM19: 2.819 | AN19: 2.883 | AO19: 2.817 | AP19: 2.802 | AQ19: 2.77 | AR19: 2.782 | AS19: 2.786 | AT19: 2.786 | AU19: 2.818 | AV19: 2.812 | AW19: 2.803 | AX19: 2.716 | AY19: 2.879 | AZ19: 2.831 | BA19: 2.721 | BB19: 2.592 | BC19: 2.676 | BD19: 2.62 | BE19: 2.539 | BF19: 2.714 | BG19: 2.847 | BH19: 2.893 | BI19: 2.98 | BJ19: 3.023 | BK19: 3.07 | BL19: 3.072 | BM19: 3.065 | BN19: 3.187 | BO19: 3.423 | BP19: 3.332 | BQ19: 3.19 | BR19: 3.187 | BS19: 3.387 | BT19: 3.575 | BU19: 3.437 | BV19: 3.228 | BW19: 3.189 | BX19: 3.202 | BY19: 3.24 | BZ19: 3.222 | CA19: 3.36 | CB19: 3.275 | CC19: 3.198 | CD19: 3.23 | CE19: 3.364 | CF19: 3.497 | CG19: 3.495 | CH19: 3.523 | CI19: 3.574
B20: RIO DE JANEIRO | C20: 1.881 | D20: 1.934 | E20: 1.977 | F20: 2.006 | G20: 2.009 | H20: 2.007 | I20: 2 | J20: 1.998 | K20: 1.993 | L20: 1.993 | M20: 1.998 | N20: 2.078 | O20: 2.127 | P20: 2.138 | Q20: 2.142 | R20: 2.14 | S20: 2.14 | T20: 2.137 | U20: 2.139 | V20: 2.141 | W20: 2.144 | X20: 2.153 | Y20: 2.2 | Z20: 2.262 | AA20: 2.274 | AB20: 2.362 | AC20: 2.433 | AD20: 2.427 | AE20: 2.424 | AF20: 2.424 | AG20: 2.432 | AH20: 2.445 | AI20: 2.477 | AJ20: 2.547 | AK20: 2.598 | AL20: 2.609 | AM20: 2.619 | AN20: 2.633 | AO20: 2.637 | AP20: 2.704 | AQ20: 2.718 | AR20: 2.721 | AS20: 2.713 | AT20: 2.705 | AU20: 2.706 | AV20: 2.702 | AW20: 2.649 | AX20: 2.636 | AY20: 2.735 | AZ20: 2.73 | BA20: 2.67 | BB20: 2.638 | BC20: 2.687 | BD20: 2.635 | BE20: 2.576 | BF20: 2.792 | BG20: 2.878 | BH20: 2.949 | BI20: 3.008 | BJ20: 3.043 | BK20: 3.096 | BL20: 3.077 | BM20: 3.055 | BN20: 3.181 | BO20: 3.353 | BP20: 3.13 | BQ20: 3.023 | BR20: 3.015 | BS20: 3.165 | BT20: 3.252 | BU20: 3.206 | BV20: 3.019 | BW20: 2.974 | BX20: 3.031 | BY20: 3.117 | BZ20: 3.126 | CA20: 3.203 | CB20: 3.139 | CC20: 3.054 | CD20: 3.059 | CE20: 3.149 | CF20: 3.292 | CG20: 3.276 | CH20: 3.302 | CI20: 3.361
B21: RIO GRANDE DO NORTE | C21: 1.905 | D21: 1.941 | E21: 1.983 | F21: 1.988 | G21: 1.988 | H21: 1.987 | I21: 2.008 | J21: 2.025 | K21: 2.01 | L21: 2.025 | M21: 2.054 | N21: 2.082 | O21: 2.146 | P21: 2.172 | Q21: 2.177 | R21: 2.166 | S21: 2.199 | T21: 2.235 | U21: 2.25 | V21: 2.254 | W21: 2.255 | X21: 2.248 | Y21: 2.293 | Z21: 2.329 | AA21: 2.345 | AB21: 2.435 | AC21: 2.492 | AD21: 2.493 | AE21: 2.528 | AF21: 2.518 | AG21: 2.526 | AH21: 2.546 | AI21: 2.56 | AJ21: 2.624 | AK21: 2.643 | AL21: 2.706 | AM21: 2.736 | AN21: 2.744 | AO21: 2.745 | AP21: 2.781 | AQ21: 2.807 | AR21: 2.758 | AS21: 2.796 | AT21: 2.781 | AU21: 2.757 | AV21: 2.772 | AW21: 2.776 | AX21: 2.781 | AY21: 2.82 | AZ21: 2.811 | BA21: 2.774 | BB21: 2.723 | BC21: 2.694 | BD21: 2.658 | BE21: 2.625 | BF21: 2.683 | BG21: 2.803 | BH21: 2.885 | BI21: 2.91 | BJ21: 2.978 | BK21: 3.042 | BL21: 3.067 | BM21: 3.11 | BN21: 3.169 | BO21: 3.285 | BP21: 3.181 | BQ21: 3.106 | BR21: 3.092 | BS21: 3.264 | BT21: 3.415 | BU21: 3.453 | BV21: 3.263 | BW21: 3.187 | BX21: 3.164 | BY21: 3.225 | BZ21: 3.282 | CA21: 3.366 | CB21: 3.335 | CC21: 3.267 | CD21: 3.261 | CE21: 3.314 | CF21: 3.411 | CG21: 3.418 | CH21: 3.459 | CI21: 3.499
B22: RIO GRANDE DO SUL | C22: 1.908 | D22: 1.971 | E22: 2.008 | F22: 2.023 | G22: 2.021 | H22: 2.018 | I22: 2.012 | J22: 2.002 | K22: 2.004 | L22: 2 | M22: 2.003 | N22: 2.089 | O22: 2.119 | P22: 2.129 | Q22: 2.125 | R22: 2.12 | S22: 2.115 | T22: 2.098 | U22: 2.101 | V22: 2.098 | W22: 2.1 | X22: 2.097 | Y22: 2.139 | Z22: 2.198 | AA22: 2.203 | AB22: 2.309 | AC22: 2.37 | AD22: 2.366 | AE22: 2.365 | AF22: 2.357 | AG22: 2.377 | AH22: 2.393 | AI22: 2.382 | AJ22: 2.466 | AK22: 2.498 | AL22: 2.492 | AM22: 2.528 | AN22: 2.54 | AO22: 2.535 | AP22: 2.537 | AQ22: 2.528 | AR22: 2.53 | AS22: 2.53 | AT22: 2.522 | AU22: 2.511 | AV22: 2.501 | AW22: 2.463 | AX22: 2.456 | AY22: 2.543 | AZ22: 2.545 | BA22: 2.493 | BB22: 2.463 | BC22: 2.475 | BD22: 2.399 | BE22: 2.33 | BF22: 2.536 | BG22: 2.632 | BH22: 2.757 | BI22: 2.792 | BJ22: 2.838 | BK22: 2.912 | BL22: 2.836 | BM22: 2.859 | BN22: 2.946 | BO22: 3.163 | BP22: 3.008 | BQ22: 2.94 | BR22: 2.937 | BS22: 3.092 | BT22: 3.236 | BU22: 3.159 | BV22: 2.932 | BW22: 2.889 | BX22: 2.948 | BY22: 3.03 | BZ22: 3.042 | CA22: 3.153 | CB22: 3.103 | CC22: 2.994 | CD22: 2.995 | CE22: 3.033 | CF22: 3.18 | CG22: 3.203 | CH22: 3.232 | CI22: 3.295
B23: RONDONIA | C23: 2.053 | D23: 2.106 | E23: 2.158 | F23: 2.194 | G23: 2.204 | H23: 2.197 | I23: 2.218 | J23: 2.208 | K23: 2.215 | L23: 2.211 | M23: 2.207 | N23: 2.279 | O23: 2.313 | P23: 2.319 | Q23: 2.365 | R23: 2.403 | S23: 2.402 | T23: 2.402 | U23: 2.391 | V23: 2.394 | W23: 2.393 | X23: 2.401 | Y23: 2.407 | Z23: 2.452 | AA23: 2.515 | AB23: 2.559 | AC23: 2.66 | AD23: 2.646 | AE23: 2.649 | AF23: 2.68 | AG23: 2.682 | AH23: 2.701 | AI23: 2.733 | AJ23: 2.758 | AK23: 2.818 | AL23: 2.86 | AM23: 2.873 | AN23: 2.873 | AO23: 2.878 | AP23: 2.89 | AQ23: 2.891 | AR23: 2.906 | AS23: 2.895 | AT23: 2.887 | AU23: 2.872 | AV23: 2.889 | AW23: 2.862 | AX23: 2.852 | AY23: 2.951 | AZ23: 2.91 | BA23: 2.812 | BB23: 2.742 | BC23: 2.723 | BD23: 2.646 | BE23: 2.595 | BF23: 2.776 | BG23: 2.927 | BH23: 2.979 | BI23: 3.044 | BJ23: 3.065 | BK23: 3.191 | BL23: 3.172 | BM23: 3.175 | BN23: 3.236 | BO23: 3.45 | BP23: 3.261 | BQ23: 3.217 | BR23: 3.228 | BS23: 3.377 | BT23: 3.561 | BU23: 3.478 | BV23: 3.3 | BW23: 3.302 | BX23: 3.361 | BY23: 3.369 | BZ23: 3.39 | CA23: 3.484 | CB23: 3.404 | CC23: 3.319 | CD23: 3.308 | CE23: 3.411 | CF23: 3.529 | CG23: 3.53 | CH23: 3.563 | CI23: 3.595
B24: RORAIMA | C24: 2.037 | D24: 2.093 | E24: 2.154 | F24: 2.179 | G24: 2.157 | H24: 2.166 | I24: 2.161 | J24: 2.15 | K24: 2.161 | L24: 2.153 | M24: 2.166 | N24: 2.267 | O24: 2.327 | P24: 2.331 | Q24: 2.362 | R24: 2.348 | S24: 2.345 | T24: 2.347 | U24: 2.32 | V24: 2.336 | W24: 2.335 | X24: 2.349 | Y24: 2.394 | Z24: 2.448 | AA24: 2.449 | AB24: 2.567 | AC24: 2.625 | AD24: 2.644 | AE24: 2.644 | AF24: 2.651 | AG24: 2.658 | AH24: 2.673 | AI24: 2.664 | AJ24: 2.737 | AK24: 2.802 | AL24: 2.827 | AM24: 2.852 | AN24: 2.857 | AO24: 2.85 | AP24: 2.873 | AQ24: 2.842 | AR24: 2.828 | AS24: 2.84 | AT24: 2.862 | AU24: 2.859 | AV24: 2.865 | AW24: 2.792 | AX24: 2.827 | AY24: 2.895 | AZ24: 2.814 | BA24: 2.704 | BB24: 2.581 | BC24: 2.592 | BD24: 2.513 | BE24: 2.424 | BF24: 2.592 | BG24: 2.726 | BH24: 2.817 | BI24: 2.911 | BJ24: 2.93 | BK24: 3.063 | BL24: 3.057 | BM24: 2.98 | BN24: 3.031 | BO24: 3.269 | BP24: 3.12 | BQ24: 3.068 | BR24: 3.085 | BS24: 3.27 | BT24: 3.429 | BU24: 3.341 | BV24: 3.138 | BW24: 3.064 | BX24: 3.046 | BY24: 3.141 | BZ24: 3.173 | CA24: 3.248 | CB24: 3.258 | CC24: 3.163 | CD24: 3.159 | CE24: 3.244 | CF24: 3.451 | CG24: 3.443 | CH24: 3.47 | CI24: 3.512
B25: SANTA CATARINA | C25: 1.925 | D25: 1.97 | E25: 2.035 | F25: 2.047 | G25: 2.049 | H25: 2.043 | I25: 2.034 | J25: 2.028 | K25: 2.046 | L25: 2.045 | M25: 2.053 | N25: 2.152 | O25: 2.195 | P25: 2.185 | Q25: 2.202 | R25: 2.18 | S25: 2.179 | T25: 2.172 | U25: 2.166 | V25: 2.168 | W25: 2.168 | X25: 2.152 | Y25: 2.21 | Z25: 2.269 | AA25: 2.263 | AB25: 2.392 | AC25: 2.416 | AD25: 2.416 | AE25: 2.419 | AF25: 2.42 | AG25: 2.431 | AH25: 2.451 | AI25: 2.483 | AJ25: 2.535 | AK25: 2.603 | AL25: 2.611 | AM25: 2.623 | AN25: 2.61 | AO25: 2.593 | AP25: 2.611 | AQ25: 2.615 | AR25: 2.605 | AS25: 2.569 | AT25: 2.585 | AU25: 2.595 | AV25: 2.574 | AW25: 2.53 | AX25: 2.563 | AY25: 2.616 | AZ25: 2.643 | BA25: 2.494 | BB25: 2.52 | BC25: 2.489 | BD25: 2.437 | BE25: 2.353 | BF25: 2.557 | BG25: 2.634 | BH25: 2.714 | BI25: 2.803 | BJ25: 2.829 | BK25: 2.899 | BL25: 2.829 | BM25: 2.79 | BN25: 2.95 | BO25: 3.137 | BP25: 2.991 | BQ25: 2.915 | BR25: 2.922 | BS25: 3.1 | BT25: 3.221 | BU25: 3.186 | BV25: 3.003 | BW25: 2.885 | BX25: 2.958 | BY25: 3.009 | BZ25: 3.041 | CA25: 3.133 | CB25: 3.069 | CC25: 2.949 | CD25: 2.933 | CE25: 2.958 | CF25: 3.075 | CG25: 3.162 | CH25: 3.185 | CI25: 3.259
B26: SAO PAULO | C26: 1.865 | D26: 1.938 | E26: 1.986 | F26: 2.006 | G26: 2.003 | H26: 2 | I26: 1.998 | J26: 1.99 | K26: 1.989 | L26: 1.986 | M26: 1.985 | N26: 2.083 | O26: 2.127 | P26: 2.126 | Q26: 2.127 | R26: 2.128 | S26: 2.125 | T26: 2.123 | U26: 2.124 | V26: 2.125 | W26: 2.123 | X26: 2.124 | Y26: 2.181 | Z26: 2.223 | AA26: 2.236 | AB26: 2.335 | AC26: 2.393 | AD26: 2.39 | AE26: 2.397 | AF26: 2.4 | AG26: 2.419 | AH26: 2.429 | AI26: 2.452 | AJ26: 2.518 | AK26: 2.568 | AL26: 2.586 | AM26: 2.6 | AN26: 2.604 | AO26: 2.603 | AP26: 2.6 | AQ26: 2.592 | AR26: 2.585 | AS26: 2.579 | AT26: 2.574 | AU26: 2.577 | AV26: 2.567 | AW26: 2.515 | AX26: 2.523 | AY26: 2.624 | AZ26: 2.617 | BA26: 2.539 | BB26: 2.503 | BC26: 2.541 | BD26: 2.483 | BE26: 2.429 | BF26: 2.653 | BG26: 2.738 | BH26: 2.827 | BI26: 2.892 | BJ26: 2.878 | BK26: 2.916 | BL26: 2.89 | BM26: 2.867 | BN26: 2.996 | BO26: 3.191 | BP26: 2.966 | BQ26: 2.934 | BR26: 2.955 | BS26: 3.137 | BT26: 3.248 | BU26: 3.163 | BV26: 2.901 | BW26: 2.893 | BX26: 2.98 | BY26: 3.065 | BZ26: 3.078 | CA26: 3.187 | CB26: 3.108 | CC26: 3.023 | CD26: 3.018 | CE26: 3.127 | CF26: 3.263 | CG26: 3.244 | CH26: 3.267 | CI26: 3.305
B27: SERGIPE | C27: 1.963 | D27: 2.04 | E27: 2.1 | F27: 2.117 | G27: 2.119 | H27: 2.113 | I27: 2.101 | J27: 2.102 | K27: 2.082 | L27: 2.074 | M27: 2.08 | N27: 2.18 | O27: 2.215 | P27: 2.216 | Q27: 2.196 | R27: 2.211 | S27: 2.198 | T27: 2.188 | U27: 2.2 | V27: 2.182 | W27: 2.188 | X27: 2.184 | Y27: 2.254 | Z27: 2.282 | AA27: 2.306 | AB27: 2.439 | AC27: 2.507 | AD27: 2.5 | AE27: 2.518 | AF27: 2.527 | AG27: 2.528 | AH27: 2.549 | AI27: 2.541 | AJ27: 2.64 | AK27: 2.688 | AL27: 2.702 | AM27: 2.738 | AN27: 2.735 | AO27: 2.713 | AP27: 2.737 | AQ27: 2.69 | AR27: 2.691 | AS27: 2.67 | AT27: 2.668 | AU27: 2.669 | AV27: 2.68 | AW27: 2.654 | AX27: 2.655 | AY27: 2.765 | AZ27: 2.7 | BA27: 2.611 | BB27: 2.59 | BC27: 2.612 | BD27: 2.574 | BE27: 2.539 | BF27: 2.762 | BG27: 2.851 | BH27: 2.875 | BI27: 2.964 | BJ27: 2.971 | BK27: 3.089 | BL27: 3.056 | BM27: 3.057 | BN27: 3.188 | BO27: 3.41 | BP27: 3.192 | BQ27: 3.217 | BR27: 3.183 | BS27: 3.346 | BT27: 3.457 | BU27: 3.367 | BV27: 3.226 | BW27: 3.133 | BX27: 3.151 | BY27: 3.206 | BZ27: 3.29 | CA27: 3.389 | CB27: 3.329 | CC27: 3.22 | CD27: 3.174 | CE27: 3.246 | CF27: 3.499 | CG27: 3.46 | CH27: 3.515 | CI27: 3.5
B28: TOCANTINS | C28: 1.898 | D28: 1.944 | E28: 1.949 | F28: 1.979 | G28: 2 | H28: 1.981 | I28: 1.993 | J28: 1.948 | K28: 1.982 | L28: 1.968 | M28: 1.956 | N28: 2.072 | O28: 2.124 | P28: 2.154 | Q28: 2.144 | R28: 2.146 | S28: 2.148 | T28: 2.165 | U28: 2.154 | V28: 2.173 | W28: 2.186 | X28: 2.184 | Y28: 2.246 | Z28: 2.318 | AA28: 2.314 | AB28: 2.409 | AC28: 2.472 | AD28: 2.495 | AE28: 2.522 | AF28: 2.549 | AG28: 2.523 | AH28: 2.542 | AI28: 2.574 | AJ28: 2.651 | AK28: 2.682 | AL28: 2.672 | AM28: 2.704 | AN28: 2.714 | AO28: 2.725 | AP28: 2.736 | AQ28: 2.736 | AR28: 2.73 | AS28: 2.725 | AT28: 2.693 | AU28: 2.668 | AV28: 2.687 | AW28: 2.601 | AX28: 2.556 | AY28: 2.702 | AZ28: 2.638 | BA28: 2.512 | BB28: 2.505 | BC28: 2.462 | BD28: 2.441 | BE28: 2.375 | BF28: 2.594 | BG28: 2.716 | BH28: 2.785 | BI28: 2.857 | BJ28: 2.877 | BK28: 3.024 | BL28: 3.038 | BM28: 2.935 | BN28: 3.042 | BO28: 3.271 | BP28: 3.078 | BQ28: 3.056 | BR28: 3.036 | BS28: 3.275 | BT28: 3.401 | BU28: 3.272 | BV28: 3.085 | BW28: 2.956 | BX28: 3.047 | BY28: 3.119 | BZ28: 3.145 | CA28: 3.224 | CB28: 3.164 | CC28: 3.106 | CD28: 3.136 | CE28: 3.235 | CF28: 3.356 | CG28: 3.348 | CH28: 3.363 | CI28: 3.386
B29: Média do mês no Brasil | C29: =AVERAGE(C2:C28) -> 1.968 | D29: =AVERAGE(D2:D28) -> 2.02637037 | E29: 2.074962963 | F29: 2.096592593 | G29: 2.098185185 | H29: 2.094592593 | I29: 2.094777778 | J29: 2.092185185 | K29: 2.091888889 | L29: 2.090777778 | M29: 2.094444444 | N29: 2.183148148 | O29: 2.231037037 | P29: 2.241444444 | Q29: 2.245481481 | R29: 2.247074074 | S29: 2.248111111 | T29: 2.249222222 | U29: 2.249259259 | V29: 2.252888889 | W29: 2.25537037 | X29: 2.256111111 | Y29: 2.302407407 | Z29: 2.355111111 | AA29: 2.368481481 | AB29: 2.46737037 | AC29: 2.531148148 | AD29: 2.533407407 | AE29: 2.541037037 | AF29: 2.545814815 | AG29: 2.554074074 | AH29: 2.567777778 | AI29: 2.585185185 | AJ29: 2.653740741 | AK29: 2.707740741 | AL29: 2.724037037 | AM29: 2.753777778 | AN29: 2.775703704 | AO29: 2.776222222 | AP29: 2.783037037 | AQ29: 2.778333333 | AR29: 2.772851852 | AS29: 2.770185185 | AT29: 2.767851852 | AU29: 2.768185185 | AV29: 2.762222222 | AW29: 2.724555556 | AX29: 2.718740741 | AY29: 2.815111111 | AZ29: 2.791555556 | BA29: 2.704518519 | BB29: 2.657481481 | BC29: 2.675888889 | BD29: 2.619111111 | BE29: 2.562518519 | BF29: 2.749 | BG29: 2.850148148 | BH29: 2.919814815 | BI29: 2.982148148 | BJ29: 3.014740741 | BK29: 3.095814815 | BL29: 3.08162963 | BM29: 3.064851852 | BN29: 3.164333333 | BO29: 3.352703704 | BP29: =AVERAGE(BP2:BP28) -> 3.19437037 | BQ29: 3.133518519 | BR29: 3.130111111 | BS29: 3.305481481 | BT29: 3.431148148 | BU29: 3.371777778 | BV29: 3.185555556 | BW29: 3.139481481 | BX29: 3.187444444 | BY29: 3.258851852 | BZ29: 3.276962963 | CA29: 3.369740741 | CB29: 3.309888889 | CC29: 3.22962963 | CD29: 3.224 | CE29: 3.308259259 | CF29: 3.446222222 | CG29: 3.437888889 | CH29: 3.472444444 | CI29: 3.507481481
B30: IPCA (mensal) (%) | C30: 0.86 | D30: 0.6 | E30: 0.47 | F30: 0.55 | G30: 0.37 | H30: 0.26 | I30: 0.03 | J30: 0.24 | K30: 0.35 | L30: 0.57 | M30: 0.54 | N30: 0.92 | O30: 0.55 | P30: 0.69 | Q30: 0.92 | R30: 0.67 | S30: 0.46 | T30: 0.4 | U30: 0.01 | V30: 0.25 | W30: 0.57 | X30: 0.42 | Y30: 0.51 | Z30: 0.78 | AA30: 1.24 | AB30: 1.22 | AC30: 1.32 | AD30: 0.71 | AE30: 0.74 | AF30: 0.79 | AG30: 0.62 | AH30: 0.22 | AI30: 0.54 | AJ30: 0.82 | AK30: 1.01 | AL30: 0.96 | AM30: 1.27 | AN30: 0.9 | AO30: 0.43 | AP30: 0.61 | AQ30: 0.78 | AR30: 0.35 | AS30: 0.52 | AT30: 0.44 | AU30: 0.08 | AV30: 0.26 | AW30: 0.18 | AX30: 0.3 | AY30: 0.38 | AZ30: 0.33 | BA30: 0.25 | BB30: 0.14 | BC30: 0.31 | BD30: -0.23 | BE30: 0.24 | BF30: 0.19 | BG30: 0.16 | BH30: 0.42 | BI30: 0.28 | BJ30: 0.44 | BK30: 0.29 | BL30: 0.32 | BM30: 0.09 | BN30: 0.22 | BO30: 0.4 | BP30: 1.26 | BQ30: 0.33 | BR30: -0.09 | BS30: 0.48 | BT30: 0.45 | BU30: -0.21 | BV30: 0.15 | BW30: 0.32 | BX30: 0.43 | BY30: 0.75 | BZ30: 0.57 | CA30: 0.13 | CB30: 0.01 | CC30: 0.19 | CD30: 0.11 | CE30: -0.04 | CF30: 0.1 | CG30: 0.51 | CH30: 1.15 | CI30: 0.21
B31: 1+ IPCA (mensal) | C31: =1+C30/100 -> 1.0086 | D31: =1+D30/100 -> 1.006 | E31: 1.0047 | F31: 1.0055 | G31: =1+G30/100 -> 1.0037 | H31: 1.0026 | I31: 1.0003 | J31: 1.0024 | K31: =1+K30/100 -> 1.0035 | L31: 1.0057 | M31: 1.0054 | N31: 1.0092 | O31: 1.0055 | P31: 1.0069 | Q31: 1.0092 | R31: 1.0067 | S31: 1.0046 | T31: 1.004 | U31: 1.0001 | V31: 1.0025 | W31: 1.0057 | X31: 1.0042 | Y31: 1.0051 | Z31: 1.0078 | AA31: 1.0124 | AB31: 1.0122 | AC31: 1.0132 | AD31: 1.0071 | AE31: 1.0074 | AF31: 1.0079 | AG31: 1.0062 | AH31: 1.0022 | AI31: 1.0054 | AJ31: 1.0082 | AK31: 1.0101 | AL31: 1.0096 | AM31: 1.0127 | AN31: 1.009 | AO31: 1.0043 | AP31: 1.0061 | AQ31: 1.0078 | AR31: 1.0035 | AS31: 1.0052 | AT31: 1.0044 | AU31: 1.0008 | AV31: 1.0026 | AW31: 1.0018 | AX31: 1.003 | AY31: 1.0038 | AZ31: 1.0033 | BA31: 1.0025 | BB31: 1.0014 | BC31: 1.0031 | BD31: 0.9977 | BE31: 1.0024 | BF31: 1.0019 | BG31: 1.0016 | BH31: 1.0042 | BI31: 1.0028 | BJ31: 1.0044 | BK31: 1.0029 | BL31: 1.0032 | BM31: 1.0009 | BN31: 1.0022 | BO31: 1.004 | BP31: =1+BP30/100 -> 1.0126 | BQ31: 1.0033 | BR31: 0.9991 | BS31: 1.0048 | BT31: 1.0045 | BU31: 0.9979 | BV31: 1.0015 | BW31: 1.0032 | BX31: 1.0043 | BY31: 1.0075 | BZ31: 1.0057 | CA31: 1.0013 | CB31: 1.0001 | CC31: 1.0019 | CD31: 1.0011 | CE31: 0.9996 | CF31: 1.001 | CG31: 1.0051 | CH31: 1.0115 | CI31: 1.0021
B32: Multiplicador IPCA 2019 | C32: =C31*D32 -> 1.420407717 | D32: =D31*E32 -> 1.408296368 | E32: 1.399896986 | F32: =F31*G32 -> 1.39334825 | G32: =G31*H32 -> 1.385726752 | H32: 1.380618464 | I32: 1.377038165 | J32: =J31*K32 -> 1.376625177 | K32: 1.373329187 | L32: 1.3685393 | M32: =M31*N32 -> 1.360782838 | N32: 1.353474078 | O32: 1.34113563 | P32: 1.333799731 | Q32: 1.32465958 | R32: 1.312583809 | S32: 1.303848027 | T32: 1.297877789 | U32: 1.292706962 | V32: 1.292577704 | W32: 1.289354318 | X32: 1.282046652 | Y32: 1.276684577 | Z32: 1.270206524 | AA32: 1.260375594 | AB32: 1.244938358 | AC32: 1.229933174 | AD32: 1.213909567 | AE32: 1.205351571 | AF32: 1.19649749 | AG32: 1.187119248 | AH32: 1.17980446 | AI32: 1.177214588 | AJ32: 1.170891772 | AK32: 1.16136855 | AL32: 1.149756015 | AM32: 1.138823311 | AN32: 1.124541632 | AO32: 1.114511033 | AP32: 1.109739154 | AQ32: 1.103010789 | AR32: 1.094473892 | AS32: 1.090656594 | AT32: 1.085014519 | AU32: 1.080261369 | AV32: 1.07939785 | AW32: 1.076598694 | AX32: 1.074664298 | AY32: 1.071449948 | AZ32: 1.067393851 | BA32: 1.063883037 | BB32: 1.061229963 | BC32: 1.059746318 | BD32: 1.056471257 | BE32: 1.058906742 | BF32: 1.056371451 | BG32: 1.054368151 | BH32: 1.052683857 | BI32: 1.048281077 | BJ32: 1.045354085 | BK32: 1.040774677 | BL32: 1.037765158 | BM32: 1.034454902 | BN32: 1.03352473 | BO32: =BO31*BP32 -> 1.031255967 | BP32: 1.027147377 | BQ32: 1.014366361 | BR32: 1.011029962 | BS32: 1.011940709 | BT32: 1.007106597 | BU32: =BU31*BV32 -> 1.00259492 | BV32: =BV31*BW31 -> 1.0047048 | BW32: =BW31*BX31 -> 1.00751376 | BX32: 1.01183225 | BY32: 1.01324275 | BZ32: 1.00700741 | CA32: 1.00140013 | CB32: 1.00200019 | CC32: 1.00300209 | CD32: 1.00069956 | CE32: 1.0005996 | CF32: 1.0061051 | CG32: 1.01665865 | CH32: 1.01362415 | CI32: =CI31 -> 1.0021
B33: Meses de 2013 a 2019 | C33: 2013-01-01 | D33: 2013-02-01 | E33: 2013-03-01 | F33: 2013-04-01 | G33: 2013-05-01 | H33: 2013-06-01 | I33: 2013-07-01 | J33: 2013-08-01 | K33: 2013-09-01 | L33: 2013-10-01 | M33: 2013-11-01 | N33: 2013-12-01 | O33: 2014-01-01 | P33: 2014-02-01 | Q33: 2014-03-01 | R33: 2014-04-01 | S33: 2014-05-01 | T33: 2014-06-01 | U33: 2014-07-01 | V33: 2014-08-01 | W33: 2014-09-01 | X33: 2014-10-01 | Y33: 2014-11-01 | Z33: 2014-12-01 | AA33: 2015-01-01 | AB33: 2015-02-01 | AC33: 2015-03-01 | AD33: 2015-04-01 | AE33: 2015-05-01 | AF33: 2015-06-01 | AG33: 2015-07-01 | AH33: 2015-08-01 | AI33: 2015-09-01 | AJ33: 2015-10-01 | AK33: 2015-11-01 | AL33: 2015-12-01 | AM33: 2016-01-01 | AN33: 2016-02-01 | AO33: 2016-03-01 | AP33: 2016-04-01 | AQ33: 2016-05-01 | AR33: 2016-06-01 | AS33: 2016-07-01 | AT33: 2016-08-01 | AU33: 2016-09-01 | AV33: 2016-10-01 | AW33: 2016-11-01 | AX33: 2016-12-01 | AY33: 2017-01-01 | AZ33: 2017-02-01 | BA33: 2017-03-01 | BB33: 2017-04-01 | BC33: 2017-05-01 | BD33: 2017-06-01 | BE33: 2017-07-01 | BF33: 2017-08-01 | BG33: 2017-09-01 | BH33: 2017-10-01 | BI33: 2017-11-01 | BJ33: 2017-12-01 | BK33: 2018-01-01 | BL33: 2018-02-01 | BM33: 2018-03-01 | BN33: 2018-04-01 | BO33: 2018-05-01 | BP33: 2018-06-01 | BQ33: 2018-07-01 | BR33: 2018-08-01 | BS33: 2018-09-01 | BT33: 2018-10-01 | BU33: 2018-11-01 | BV33: 2018-12-01 | BW33: 2019-01-01 | BX33: 2019-02-01 | BY33: 2019-03-01 | BZ33: 2019-04-01 | CA33: 2019-05-01 | CB33: 2019-06-01 | CC33: 2019-07-01 | CD33: 2019-08-01 | CE33: 2019-09-01 | CF33: 2019-10-01 | CG33: 2019-11-01 | CH33: 2019-12-01 | CI33: 2020-01-01
A34: 1 | B34: Escolha o Estado | C34: =C62 -> 2.795362387 | D34: 2.853730033 | E34: 2.904734399 | F34: 2.921283619 | G34: 2.907511343 | H34: 2.891833208 | I34: 2.884588947 | J34: 2.880154802 | K34: 2.872852068 | L34: 2.861311556 | M34: 2.850084054 | N34: 2.954834426 | O34: 2.992123262 | P34: 2.989637998 | Q34: 2.974498556 | R34: 2.949473047 | S34: 2.931195237 | T34: 2.919215566 | U34: 2.907633103 | V34: 2.912033947 | W34: 2.907971526 | X34: 2.892439697 | Y34: 2.939448027 | Z34: 2.991477497 | AA34: 2.985176254 | AB34: 3.071724018 | AC34: 3.113143075 | AD34: 3.07532749 | AE34: 3.062842985 | AF34: 3.046061035 | AG34: 3.031990493 | AH34: 3.029475675 | AI34: 3.043317713 | AJ34: 3.107243199 | AK34: 3.144684939 | AL34: 3.131977967 | AM34: 3.136066326 | AN34: 3.121394373 | AO34: 3.094130296 | AP34: 3.088445168 | AQ34: 3.064531641 | AR34: 3.034813959 | AS34: 3.021320739 | AT34: 3.003159445 | AU34: 2.990363517 | AV34: 2.981536729 | AW34: 2.933252952 | AX34: 2.92173361 | AY34: 3.016250654 | AZ34: 2.979689236 | BA34: 2.877291376 | BB34: 2.820198973 | BC34: 2.835763397 | BD34: 2.767015607 | BE34: 2.713468137 | BF34: 2.903965118 | BG34: 3.005105434 | BH34: 3.073641922 | BI34: 3.126129472 | BJ34: 3.151471549 | BK34: 3.222045663 | BL34: 3.198007859 | BM34: 3.170451022 | BN34: 3.270416753 | BO34: =BO62 -> 3.457495699 | BP34: 3.281089147 | BQ34: 3.178535777 | BR34: 3.164636118 | BS34: 3.344951273 | BT34: 3.455531935 | BU34: 3.380527271 | BV34: 3.200542957 | BW34: =BW62 -> 3.163070792 | BX34: =BX62 -> 3.225159084 | BY34: 3.302008012 | BZ34: 3.299925986 | CA34: 3.374458816 | CB34: 3.316509296 | CC34: 3.239325268 | CD34: 3.226255381 | CE34: 3.310242892 | CF34: 3.467261754 | CG34: 3.495159477 | CH34: 3.519753548 | CI34: 3.514847193
A35: 2 | B35: ACRE | C35: =C$32*C2 -> 3.247052041 | D35: =D$32*D2 -> 3.267247574 | E35: =E$32*E2 -> 3.265959669 | F35: 3.338462406 | G35: 3.338215747 | H35: 3.295536274 | I35: 3.284236023 | J35: 3.310783551 | K35: 3.297363379 | L35: 3.305022409 | M35: 3.321670906 | N35: 3.397219935 | O35: 3.44940084 | P35: 3.430532909 | Q35: 3.40702444 | R35: 3.415343071 | S35: 3.35740867 | T35: 3.338141674 | U35: 3.313207943 | V35: 3.320632121 | W35: 3.302036408 | X35: 3.267936916 | Y35: 3.339806853 | Z35: 3.416855549 | AA35: 3.41561786 | AB35: 3.477112835 | AC35: 3.506539478 | AD35: 3.470567453 | AE35: 3.458153658 | AF35: 3.433947796 | AG35: 3.418903433 | AH35: 3.440309805 | AI35: =AI$32*AI2 -> 3.411567876 | AJ35: 3.47520678 | AK35: 3.58049924 | AL35: 3.555045597 | AM35: 3.534907557 | AN35: 3.482705434 | AO35: 3.432693981 | AP35: 3.404679726 | AQ35: 3.389552153 | AR35: 3.355656953 | AS35: 3.341771804 | AT35: 3.308209267 | AU35: 3.309920833 | AV35: 3.318068992 | AW35: 3.279319621 | AX35: 3.240112858 | AY35: 3.350423988 | AZ35: 3.299314395 | BA35: 3.192712995 | BB35: 3.132750849 | BC35: 3.1368491 | BD35: 3.0764443 | BE35: 3.053887045 | BF35: 3.277920612 | BG35: 3.347618881 | BH35: 3.42227522 | BI35: 3.478196612 | BJ35: 3.5312061 | BK35: 3.643752143 | BL35: 3.583403089 | BM35: 3.535766855 | BN35: 3.759962967 | BO35: =BO$32*BO2 -> 3.930116489 | BP35: 3.815852506 | BQ35: 3.691279188 | BR35: 3.662961553 | BS35: 3.754300029 | BT35: 3.891459891 | BU35: 3.951226579 | BV35: 3.883184052 | BW35: 3.839634939 | BX35: =BX$32*BX2 -> 3.845974382 | BY35: 3.976977794 | BZ35: 3.91121678 | CA35: 3.940509512 | CB35: 3.944874748 | CC35: 3.92073517 | CD35: 3.854694705 | CE35: 3.917347434 | CF35: 3.965060199 | CG35: 3.989368543 | CH35: 4.001788144 | CI35: 3.9963748
A36: 3 | B36: ALAGOAS | C36: =C$32*C3 -> 2.722921593 | D36: 2.754627696 | E36: 2.829191809 | F36: 2.868904046 | G36: 2.853211383 | H36: 2.842693418 | I36: 2.829813429 | J36: 2.830341365 | K36: 2.827684797 | L36: 2.808242643 | M36: 2.796408731 | N36: 2.889667155 | O36: 2.92769908 | P36: 2.914352413 | Q36: 2.899679821 | R36: 2.87062079 | S36: 2.847604092 | T36: 2.855331137 | U36: 2.843955316 | V36: 2.851426415 | W36: 2.848183689 | X36: 2.828194915 | Y36: 2.875093667 | Z36: 2.936717483 | AA36: 2.92911288 | AB36: 3.000301444 | AC36: 3.060073736 | AD36: 3.023848732 | AE36: 3.010968225 | AF36: 2.994833217 | AG36: 2.980856431 | AH36: 2.976646653 | AI36: =AI$32*AI3 -> 2.978352908 | AJ36: 3.034951474 | AK36: 3.070658447 | AL36: 3.059500755 | AM36: 3.071406469 | AN36: 3.061002322 | AO36: 3.058218274 | AP36: 3.039575544 | AQ36: 3.017837517 | AR36: 2.978063461 | AS36: 2.96222331 | AT36: 2.95340952 | AU36: 2.929668832 | AV36: 2.918691787 | AW36: 2.838990755 | AX36: 2.865055018 | AY36: 2.936844308 | AZ36: 2.929996122 | BA36: 2.84056771 | BB36: 2.799524641 | BC36: 2.793491293 | BD36: 2.767954693 | BE36: 2.699153286 | BF36: 2.86171026 | BG36: 2.93746967 | BH36: 3.060151973 | BI36: 3.089284333 | BJ36: 3.100520217 | BK36: 3.206626779 | BL36: 3.197354451 | BM36: 3.16750091 | BN36: 3.273172819 | BO36: =BO$32*BO3 -> 3.522770382 | BP36: 3.321794618 | BQ36: 3.2084408 | BR36: 3.20294292 | BS36: 3.411252129 | BT36: 3.523865983 | BU36: 3.487025131 | BV36: 3.34064346 | BW36: 3.222029004 | BX36: =BX$32*BX3 -> 3.292502142 | BY36: 3.436919408 | BZ36: 3.391600957 | CA36: 3.373717038 | CB36: 3.396780644 | CC36: 3.306897891 | CD36: 3.25127287 | CE36: 3.390031445 | CF36: 3.528410586 | CG36: 3.549155347 | CH36: 3.610529222 | CI36: 3.5514424
A37: 4 | B37: AMAPA | C37: =C$32*C4 -> 2.852178696 | D37: 2.884190962 | E37: 2.978980787 | F37: 2.96086503 | G37: 2.951597983 | H37: 2.971090935 | I37: 2.949615749 | J37: 2.936341503 | K37: 2.92381784 | L37: 2.916357248 | M37: 2.903910575 | N37: 3.002005504 | O37: 3.076565135 | P37: 3.07440838 | Q37: 3.057314311 | R37: 3.028130847 | S37: 3.022319727 | T37: 3.037034027 | U37: 3.036568653 | V37: 3.044020493 | W37: 3.040297482 | X37: 3.019219866 | Y37: 3.066596354 | Z37: 3.132329287 | AA37: 3.139595605 | AB37: 3.239329608 | AC37: 3.269162375 | AD37: 3.224143811 | AE37: 3.180922796 | AF37: 3.162342865 | AG37: 3.213531804 | AH37: 3.230304612 | AI37: =AI$32*AI4 -> 3.293846417 | AJ37: 3.361630279 | AK37: 3.386550693 | AL37: 3.364186098 | AM37: 3.339029947 | AN37: 3.475958185 | AO37: 3.596527103 | AP37: 3.623298339 | AQ37: 3.62339044 | AR37: 3.577835154 | AS37: 3.565356406 | AT37: 3.547997476 | AU37: 3.549738857 | AV37: 3.572806885 | AW37: 3.556005485 | AX37: 3.545317519 | AY37: 3.580785727 | AZ37: 3.521332316 | BA37: 3.352295451 | BB37: 3.339690692 | BC37: 3.319125467 | BD37: 3.167300828 | BE37: 3.132246144 | BF37: 3.273695126 | BG37: 3.426696492 | BH37: 3.527543605 | BI37: 3.59245925 | BJ37: 3.744458333 | BK37: 3.776971302 | BL37: 3.758785401 | BM37: 3.708520824 | BN37: 3.839544371 | BO37: =BO$32*BO4 -> 4.017773246 | BP37: 3.805581032 | BQ37: 3.446816895 | BR37: 3.406159942 | BS37: 3.621735797 | BT37: 3.692052785 | BU37: 3.599315763 | BV37: 3.46422215 | BW37: 3.64417727 | BX37: =BX$32*BX4 -> 3.777169789 | BY37: 3.730759806 | BZ37: 3.731969461 | CA37: 3.841370899 | CB37: 3.6913687 | CC37: 3.640897587 | CD37: 3.666563188 | CE37: 3.725232311 | CF37: 3.986188406 | CG37: 4.012751692 | CH37: 4.016992506 | CI37: 3.9723244
A38: 5 | B38: AMAZONAS | C38: =C$32*C5 -> 2.856439919 | D38: 2.922214964 | E38: 2.967781611 | F38: 2.990125344 | G38: 2.972383884 | H38: 2.961426605 | I38: 2.944107596 | J38: 2.937718128 | K38: 2.938924461 | L38: 2.925937023 | M38: 2.909353707 | N38: 3.035842356 | O38: 3.091317627 | P38: 3.097082976 | Q38: 3.074534885 | R38: 3.047819605 | S38: 3.021015879 | T38: 3.007182838 | U38: 3.002958272 | V38: 3.01170605 | W38: 3.001616852 | X38: 2.980758466 | Y38: 3.042339347 | Z38: 3.091682678 | AA38: 3.085399454 | AB38: 3.16214343 | AC38: 3.203975917 | AD38: 3.173159609 | AE38: 3.165253226 | AF38: 3.150377891 | AG38: 3.142304649 | AH38: 3.133560646 | AI38: =AI$32*AI5 -> 3.131390804 | AJ38: 3.188338296 | AK38: 3.251831941 | AL38: 3.242311961 | AM38: 3.236535849 | AN38: 3.220687234 | AO38: 3.189730576 | AP38: 3.184951373 | AQ38: 3.14688978 | AR38: 3.123628488 | AS38: 3.119277859 | AT38: 3.084696276 | AU38: 3.080905423 | AV38: 3.074125078 | AW38: 3.055387093 | AX38: 3.027329327 | AY38: 3.144705598 | AZ38: 3.046342052 | BA38: 2.951211546 | BB38: 2.905647637 | BC38: 2.874032014 | BD38: 2.796479417 | BE38: 2.770100038 | BF38: 2.968403777 | BG38: 3.151506404 | BH38: 3.139103262 | BI38: 3.178388224 | BJ38: 3.178921773 | BK38: 3.256583963 | BL38: 3.273111307 | BM38: 3.236809388 | BN38: 3.314513808 | BO38: =BO$32*BO5 -> 3.437176137 | BP38: 3.353636186 | BQ38: 3.195254037 | BR38: 3.19384365 | BS38: 3.360655094 | BT38: 3.499695425 | BU38: 3.468978423 | BV38: 3.310502316 | BW38: 3.252254417 | BX38: =BX$32*BX5 -> 3.305655961 | BY38: 3.39334997 | BZ38: 3.372467816 | CA38: 3.454830449 | CB38: 3.398784644 | CC38: 3.357047995 | CD38: 3.315317642 | CE38: 3.423051232 | CF38: 3.553563213 | CG38: 3.542038737 | CH38: 3.564916136 | CI38: 3.5384151
A39: 6 | B39: BAHIA | C39: =C$32*C6 -> 2.649060392 | D39: 2.747586214 | E39: 2.815192839 | F39: 2.84939717 | G39: 2.822725395 | H39: 2.804036101 | I39: 2.800895627 | J39: 2.790419234 | K39: 2.775498287 | L39: 2.760343768 | M39: 2.751502897 | N39: 2.884253259 | O39: 2.916969995 | P39: 2.902348215 | Q39: 2.875835948 | R39: 2.841743947 | S39: 2.821527131 | T39: 2.803416025 | U39: 2.794832451 | V39: 2.79196784 | W39: 2.785005327 | X39: 2.765374629 | Y39: 2.794662539 | Z39: 2.880828396 | AA39: 2.868614852 | AB39: 2.971667861 | AC39: 3.013336275 | AD39: 2.963153254 | AE39: 2.926593615 | AF39: 2.909881895 | AG39: 2.902506561 | AH39: 2.898779558 | AI39: =AI$32*AI6 -> 2.908897247 | AJ39: 3.011533639 | AK39: 3.071819815 | AL39: 3.053751975 | AM39: 3.036102946 | AN39: 3.012647032 | AO39: 2.973515435 | AP39: 2.951906151 | AQ39: 2.945038805 | AR39: 2.910206079 | AS39: 2.902237197 | AT39: 2.888308649 | AU39: 2.867013672 | AV39: 2.853927916 | AW39: 2.790543814 | AX39: 2.774783217 | AY39: 2.870414411 | AZ39: 2.828593706 | BA39: 2.72141281 | BB39: 2.671115816 | BC39: 2.746862456 | BD39: 2.687662877 | BE39: 2.619735281 | BF39: 2.836357346 | BG39: 2.903729889 | BH39: 2.978042632 | BI39: 3.022194344 | BJ39: 3.055569991 | BK39: 3.145221073 | BL39: 3.122635359 | BM39: 3.086813428 | BN39: 3.19255789 | BO39: =BO$32*BO6 -> 3.381488315 | BP39: 3.255030038 | BQ39: 3.142506986 | BR39: 3.123071553 | BS39: 3.330296872 | BT39: 3.429197963 | BU39: 3.291519122 | BV39: 3.102528422 | BW39: 3.047729124 | BX39: =BX$32*BX6 -> 3.131620814 | BY39: 3.214006003 | BZ39: 3.21537466 | CA39: 3.303619029 | CB39: 3.244476615 | CC39: 3.159456583 | CD39: 3.119180529 | CE39: 3.208922917 | CF39: 3.379507031 | CG39: 3.414956405 | CH39: 3.420981506 | CI39: 3.4321925
A40: 7 | B40: CEARA | C40: =C$32*C7 -> 2.761272602 | D40: 2.802509773 | E40: 2.855789852 | F40: 2.867510698 | G40: 2.847668476 | H40: 2.808177956 | I40: 2.83669862 | J40: 2.842730991 | K40: 2.837298101 | L40: 2.820559497 | M40: 2.801851862 | N40: 2.878839363 | O40: 2.975979962 | P40: 2.957034004 | Q40: 2.931471651 | R40: 2.913936056 | S40: 2.923227277 | T40: 2.892969593 | U40: 2.911176078 | V40: 2.941906854 | W40: 2.948753325 | X40: 2.923066367 | Y40: 2.922330997 | Z40: 2.973553472 | AA40: 2.969444899 | AB40: 2.99532169 | AC40: 3.095741798 | AD40: 3.067549477 | AE40: 3.090521429 | AF40: 3.071409056 | AG40: 3.054457824 | AH40: 3.034457071 | AI40: =AI$32*AI7 -> 3.012492131 | AJ40: 3.06539466 | AK40: 3.179827091 | AL40: 3.146882212 | AM40: 3.144291161 | AN40: 3.122852112 | AO40: 3.109485781 | AP40: 3.08396511 | AQ40: 3.060854938 | AR40: 3.039353999 | AS40: 3.059291746 | AT40: 3.05431587 | AU40: 3.035534446 | AV40: 3.009361207 | AW40: 2.985408178 | AX40: 2.994014734 | AY40: 3.049346552 | AZ40: 3.029263751 | BA40: 2.970361441 | BB40: 2.861075979 | BC40: 2.896286686 | BD40: 2.850359451 | BE40: 2.811397401 | BF40: 2.911359719 | BG40: 2.944850247 | BH40: 3.026466089 | BI40: 3.062029025 | BJ40: 3.117245882 | BK40: 3.167077341 | BL40: 3.184901269 | BM40: 3.178879914 | BN40: 3.238032978 | BO40: =BO$32*BO7 -> 3.389738362 | BP40: 3.267355807 | BQ40: 3.175981076 | BR40: 3.171600991 | BS40: 3.310058058 | BT40: 3.453368521 | BU40: 3.483014752 | BV40: 3.361742261 | BW40: 3.221021491 | BX40: =BX$32*BX7 -> 3.273277329 | BY40: 3.348767289 | BZ40: 3.375488838 | CA40: 3.439809447 | CB40: 3.409806647 | CC40: 3.344008968 | CD40: 3.32132184 | CE40: 3.340001465 | CF40: 3.498227433 | CG40: 3.566438544 | CH40: 3.558834391 | CI40: 3.5724865
A41: 8 | B41: DISTRITO FEDERAL | C41: =C$32*C8 -> 2.769795048 | D41: 2.888415851 | E41: 3.048975636 | F41: 2.977585209 | G41: 2.936354988 | H41: 2.917246815 | I41: 2.915189795 | J41: 2.917068751 | K41: 2.912831206 | L41: 2.909514551 | M41: 2.894385095 | N41: 3.010126348 | O41: 2.99207359 | P41: 2.987711398 | Q41: 2.99637997 | R41: 2.98087783 | S41: 2.96103887 | T41: 2.946182582 | U41: 2.937030217 | V41: 2.939321698 | W41: 2.939727845 | X41: 2.934604787 | Y41: 2.983611856 | Z41: 3.016740494 | AA41: 2.993392036 | AB41: 3.117325649 | AC41: 3.064993469 | AD41: 3.017779184 | AE41: 2.998914709 | AF41: 2.980475247 | AG41: 2.960675404 | AH41: 2.951870759 | AI41: =AI$32*AI8 -> 2.992479483 | AJ41: 3.0454895 | AK41: 3.081110764 | AL41: 3.046853438 | AM41: 3.153401747 | AN41: 3.157712903 | AO41: 3.11840187 | AP41: 3.125025459 | AQ41: 3.086224186 | AR41: 3.049204264 | AS41: 3.025481392 | AT41: 3.02068042 | AU41: 3.009608173 | AV41: 2.993170239 | AW41: 2.957416612 | AX41: 2.918788233 | AY41: 3.110419199 | AZ41: 3.106116108 | BA41: 2.972489207 | BB41: 2.926872237 | BC41: 2.981066392 | BD41: 2.9000136 | BE41: 2.814574121 | BF41: 3.059251722 | BG41: 3.280139319 | BH41: 3.294900473 | BI41: 3.35869257 | BJ41: 3.317953866 | BK41: 3.368987628 | BL41: 3.305282027 | BM41: 3.319565781 | BN41: 3.490213012 | BO41: =BO$32*BO8 -> 3.666114961 | BP41: 3.34439186 | BQ41: 3.27234588 | BR41: 3.266637808 | BS41: 3.45476558 | BT41: 3.571199993 | BU41: 3.459955069 | BV41: 3.199984788 | BW41: 3.222029004 | BX41: =BX$32*BX8 -> 3.292502142 | BY41: 3.396389698 | BZ41: 3.38253789 | CA41: 3.479865452 | CB41: 3.346680635 | CC41: 3.278813832 | CD41: 3.278291759 | CE41: 3.409042837 | CF41: 3.52338006 | CG41: 3.548138689 | CH41: 3.560861639 | CI41: 3.5865159
A42: 9 | B42: ESPIRITO SANTO | C42: =C$32*C9 -> 2.730023632 | D42: 2.857433331 | E42: 2.843190779 | F42: 2.9051311 | G42: 2.896168913 | H42: 2.88549259 | I42: 2.847714925 | J42: 2.839977741 | K42: 2.813951505 | L42: 2.795925789 | M42: 2.789604817 | N42: 2.909969267 | O42: 2.920993402 | P42: 2.949031206 | Q42: 2.923523693 | R42: 2.908685721 | S42: 2.899758013 | T42: 2.877395059 | U42: 2.810344935 | V42: 2.807478773 | W42: 2.819817894 | X42: 2.807682168 | Y42: 2.832963076 | Z42: 2.860505091 | AA42: 2.856011096 | AB42: 2.99532169 | AC42: 3.042854672 | AD42: 2.980147988 | AE42: 2.982039787 | AF42: 2.951759307 | AG42: 2.933371661 | AH42: 2.927094865 | AI42: =AI$32*AI9 -> 2.92773268 | AJ42: 3.015046314 | AK42: 3.050915182 | AL42: 3.036505634 | AM42: 3.021298243 | AN42: 2.9901562 | AO42: 2.959026792 | AP42: 2.941918498 | AQ42: 2.9240816 | AR42: 2.903639236 | AS42: 2.897874571 | AT42: 2.88396859 | AU42: 2.902662297 | AV42: 2.873357078 | AW42: 2.813152387 | AX42: 2.820993782 | AY42: 2.922915458 | AZ42: 2.887300368 | BA42: 2.812906751 | BB42: 2.760259133 | BC42: 2.809387488 | BD42: 2.758446452 | BE42: 2.713977981 | BF42: 2.966291034 | BG42: 3.012329808 | BH42: 3.064362708 | BI42: 3.072511836 | BJ42: 3.060796762 | BK42: 3.060918324 | BL42: 3.066596041 | BM42: 3.075434424 | BN42: 3.102641239 | BO42: =BO$32*BO9 -> 3.274237694 | BP42: 3.051654857 | BQ42: 2.950791744 | BR42: 2.94614131 | BS42: 3.179517707 | BT42: 3.261011161 | BU42: 3.216324503 | BV42: 3.017128514 | BW42: 2.98224073 | BX42: =BX$32*BX9 -> 3.064839885 | BY42: 3.152198195 | BZ42: 3.199262542 | CA42: 3.303619029 | CB42: 3.203394607 | CC42: 3.126357515 | CD42: 3.091160941 | CE42: 3.179905529 | CF42: 3.358378824 | CG42: 3.364123473 | CH42: 3.39260003 | CI42: 3.3931106
A43: 10 | B43: GOIAS | C43: =C$32*C10 -> 2.772635864 | D43: 2.818001033 | E43: 2.826392015 | F43: 2.885624225 | G43: 2.875383011 | H43: 2.875828261 | I43: 2.869747536 | J43: 2.879899871 | K43: 2.886737952 | L43: 2.89172354 | M43: 2.875334136 | N43: 3.025014563 | O43: 3.010849489 | P43: 3.006384594 | Q43: 2.99770463 | R43: 2.987440749 | S43: 2.979292742 | T43: 2.950076215 | U43: 2.93573751 | V43: 2.950954898 | W43: 2.942306554 | X43: 2.94101502 | Y43: 2.958078165 | Z43: 3.005308635 | AA43: 2.989610909 | AB43: 3.045119225 | AC43: 3.067453335 | AD43: 3.08575812 | AE43: 3.080878616 | AF43: 3.076195046 | AG43: 3.066329017 | AH43: 3.060412769 | AI43: =AI$32*AI10 -> 3.091365508 | AJ43: 3.167262244 | AK43: 3.167052037 | AL43: 3.136534408 | AM43: 3.136319398 | AN43: 3.122852112 | AO43: 3.092768116 | AP43: 3.061770327 | AQ43: 3.020043539 | AR43: 3.014181099 | AS43: 2.987308411 | AT43: 2.970769752 | AU43: 2.95991615 | AV43: 2.958629508 | AW43: 2.935884638 | AX43: 2.924161555 | AY43: 3.011845804 | AZ43: 3.055948597 | BA43: 3.01930006 | BB43: 2.984178655 | BC43: 2.960931212 | BD43: 2.928538324 | BE43: 2.897168847 | BF43: 3.031786064 | BG43: 3.015492913 | BH43: 3.049625134 | BI43: 3.074608398 | BJ43: 3.081703843 | BK43: 3.124405579 | BL43: 3.109144412 | BM43: 3.107502526 | BN43: 3.145015753 | BO43: =BO$32*BO10 -> 3.291769045 | BP43: 3.302278817 | BQ43: 3.201340235 | BR43: 3.20597601 | BS43: 3.407204366 | BT43: 3.490631465 | BU43: 3.387768234 | BV43: 3.134678976 | BW43: 3.109187463 | BX43: =BX$32*BX10 -> 3.180188762 | BY43: 3.280880025 | BZ43: 3.274788097 | CA43: 3.370712838 | CB43: 3.313614628 | CC43: 3.231672734 | CD43: 3.205240691 | CE43: 3.331996668 | CF43: 3.441885547 | CG43: 3.491205804 | CH43: 3.545657277 | CI43: 3.5424235
A44: 11 | B44: MARANHAO | C44: =C$32*C11 -> 2.764113417 | D44: 2.833492293 | E44: 2.843190779 | F44: 2.818743509 | G44: 2.872611558 | H44: 2.857880221 | I44: 2.846337887 | J44: 2.853743993 | K44: 2.83867143 | L44: 2.820559497 | M44: 2.81001656 | N44: 2.86801157 | O44: 2.899535231 | P44: 2.902348215 | Q44: 2.899679821 | R44: 2.896872467 | S44: 2.88802338 | T44: 2.883884448 | U44: 2.878858403 | V44: 2.851426415 | W44: 2.841736917 | X44: 2.832041055 | Y44: 2.891690567 | Z44: 2.932906863 | AA44: 2.939195885 | AB44: 3.013995766 | AC44: 3.076062867 | AD44: 3.038415647 | AE44: 3.003736115 | AF44: 3.009191187 | AG44: 3.004598816 | AH44: 3.010860982 | AI44: =AI$32*AI11 -> 3.017200989 | AJ44: 3.074761794 | AK44: 3.125242769 | AL44: 3.122737335 | AM44: 3.148846454 | AN44: 3.134097528 | AO44: 3.106142248 | AP44: 3.098391719 | AQ44: 3.071885046 | AR44: 3.041542946 | AS44: 3.025481392 | AT44: 3.007660246 | AU44: 2.986922684 | AV44: 2.98777325 | AW44: 2.907893072 | AX44: 2.944580176 | AY44: 3.000059855 | AZ44: 2.928928728 | BA44: 2.82992888 | BB44: 2.702952715 | BC44: 2.746862456 | BD44: 2.687662877 | BE44: 2.641972322 | BF44: 2.799384345 | BG44: 2.911110466 | BH44: 2.931724542 | BI44: 2.972925133 | BJ44: 3.050343221 | BK44: 3.097345438 | BL44: 3.147541723 | BM44: 3.078537788 | BN44: 3.157418049 | BO44: =BO$32*BO11 -> 3.300019093 | BP44: 3.21497129 | BQ44: 3.222641929 | BR44: 3.112961253 | BS44: 3.182553529 | BT44: 3.214684258 | BU44: 3.13611691 | BV44: 3.121617814 | BW44: 3.092059729 | BX44: =BX$32*BX11 -> 3.181200594 | BY44: 3.25352247 | BZ44: 3.221416705 | CA44: 3.354690436 | CB44: 3.32163063 | CC44: 3.27781083 | CD44: 3.240265175 | CE44: 3.2519487 | CF44: 3.409690184 | CG44: 3.455622751 | CH44: 3.47571721 | CI44: 3.417161
A45: 12 | B45: MATO GROSSO | C45: =C$32*C12 -> 3.078023523 | D45: 3.120784752 | E45: 3.165167086 | F45: 3.155933785 | G45: 3.11927092 | H45: 3.1105334 | I45: 3.102466985 | J45: 3.10291315 | K45: 3.073510721 | L45: 3.077844885 | M45: 3.048153556 | N45: 3.134645964 | O45: 3.193243934 | P45: 3.197117956 | Q45: 3.188455609 | R45: 3.143638223 | S45: 3.13314681 | T45: 3.126587595 | U45: 3.111545657 | V45: 3.116404844 | W45: 3.127973576 | X45: 3.091014478 | Y45: 3.153410905 | Z45: 3.202190646 | AA45: 3.205135136 | AB45: 3.25302393 | AC45: 3.303600504 | AD45: 3.258133279 | AE45: 3.267708109 | AF45: 3.259259162 | AG45: 3.251519619 | AH45: 3.257440114 | AI45: =AI$32*AI12 -> 3.25617555 | AJ45: 3.337041551 | AK45: 3.37261427 | AL45: 3.353838294 | AM45: 3.362945237 | AN45: 3.308401481 | AO45: 3.280005969 | AP45: 3.252645461 | AQ45: 3.229615589 | AR45: 3.201336135 | AS45: 3.173810689 | AT45: 3.180177554 | AU45: 3.166246071 | AV45: 3.137809551 | AW45: 3.083378659 | AX45: 3.044523956 | AY45: 3.151134297 | AZ45: 3.133868348 | BA45: 3.045897136 | BB45: 2.993729724 | BC45: 3.009679542 | BD45: 2.929594795 | BE45: 2.883403059 | BF45: 3.140592323 | BG45: 3.247453906 | BH45: 3.323322937 | BI45: 3.36917538 | BJ45: 3.335724886 | BK45: 3.387721572 | BL45: 3.35405699 | BM45: 3.308186777 | BN45: 3.387894064 | BO45: =BO$32*BO12 -> 3.610427139 | BP45: 3.444025155 | BQ45: 3.378854348 | BR45: 3.359652564 | BS45: 3.547864125 | BT45: 3.682988825 | BU45: 3.575253484 | BV45: 3.36576108 | BW45: 3.341923142 | BX45: =BX$32*BX12 -> 3.382555212 | BY45: 3.483528575 | BZ45: 3.471154542 | CA45: 3.508906056 | CB45: 3.435858652 | CC45: 3.365072012 | CD45: 3.354344925 | CE45: 3.47808421 | CF45: 3.634051621 | CG45: 3.632521356 | CH45: 3.668305799 | CI45: 3.6686881
A46: 13 | B46: MATO GROSSO DO SUL | C46: =C$32*C13 -> 2.931721528 | D46: 3.001079561 | E46: 3.05177543 | F46: 3.063972801 | G46: 3.029198681 | H46: 3.008367633 | I46: 3.001943199 | J46: 3.006549387 | K46: 2.989737641 | L46: 2.975204438 | M46: 2.96378502 | N46: 3.077800052 | O46: 3.12082261 | P46: 3.118423772 | Q46: 3.097054098 | R46: 3.062258027 | S46: 3.031446663 | T46: 3.018863738 | U46: 3.004250979 | V46: 3.012998628 | W46: 2.992591372 | X46: 2.985886653 | Y46: 3.0627663 | Z46: 3.108195363 | AA46: 3.103044712 | AB46: 3.197001704 | AC46: 3.3368087 | AD46: 3.301834023 | AE46: 3.286993735 | AF46: 3.264045152 | AG46: 3.12449786 | AH46: 3.063952183 | AI46: =AI$32*AI13 -> 3.059580714 | AJ46: 3.119255682 | AK46: 3.151954245 | AL46: 3.113539287 | AM46: 3.224008793 | AN46: 3.297156065 | AO46: 3.242112594 | AP46: 3.244877287 | AQ46: 3.219688492 | AR46: 3.192580344 | AS46: 3.180354628 | AT46: 3.156307235 | AU46: 3.158684242 | AV46: 3.132412562 | AW46: 3.109217027 | AX46: 3.096107842 | AY46: 3.219707094 | AZ46: 3.223529431 | BA46: 3.155477089 | BB46: 3.075444431 | BC46: 3.045710917 | BD46: 2.991926599 | BE46: 2.929994956 | BF46: 3.141648695 | BG46: 3.206333548 | BH46: 3.232792125 | BI46: 3.359740851 | BJ46: 3.417262505 | BK46: 3.447045729 | BL46: 3.42462502 | BM46: 3.403356628 | BN46: 3.442670875 | BO46: =BO$32*BO13 -> 3.553708061 | BP46: 3.261192922 | BQ46: 3.129320224 | BR46: 3.154413482 | BS46: 3.342440161 | BT46: 3.38287106 | BU46: 3.269462034 | BV46: 3.052293182 | BW46: 3.093067243 | BX46: =BX$32*BX13 -> 3.165011278 | BY46: 3.246429771 | BZ46: 3.231486779 | CA46: 3.295607828 | CB46: 3.201390607 | CC46: 3.112315485 | CD46: 3.117179129 | CE46: 3.216927714 | CF46: 3.361397139 | CG46: 3.390556598 | CH46: 3.424022379 | CI46: 3.4291862
A47: 14 | B47: MINAS GERAIS | C47: =C$32*C14 -> 2.792521572 | D47: 2.84616696 | E47: 2.906186144 | F47: 2.932998065 | G47: 2.918340541 | H47: 2.896537538 | I47: 2.894534223 | J47: 2.882653121 | K47: 2.882617964 | L47: 2.873932529 | M47: 2.850840045 | N47: 2.955987385 | O47: 3.006826082 | P47: 3.006384594 | Q47: 2.983133374 | R47: 2.95331357 | S47: 2.931050365 | T47: 2.909842004 | U47: 2.907297957 | V47: 2.910884989 | W47: 2.901047216 | X47: 2.884604967 | Y47: 2.924884366 | Z47: 2.974823678 | AA47: 2.970705275 | AB47: 3.046364163 | AC47: 3.084672399 | AD47: 3.051768652 | AE47: 3.03025385 | AF47: 3.012780679 | AG47: 3.001037458 | AH47: 3.0155802 | AI47: =AI$32*AI14 -> 3.040745281 | AJ47: 3.111059439 | AK47: 3.112467715 | AL47: 3.103191483 | AM47: 3.089627642 | AN47: 3.059877781 | AO47: 3.035928053 | AP47: 3.020709978 | AQ47: 2.990262248 | AR47: 2.964929774 | AS47: 2.950226087 | AT47: 2.930624215 | AU47: 2.927508309 | AV47: 2.908977207 | AW47: 2.860522729 | AX47: 2.844636397 | AY47: 2.956130407 | AZ47: 2.938535273 | BA47: 2.827801114 | BB47: 2.785728652 | BC47: 2.831642161 | BD47: 2.760559394 | BE47: 2.725625955 | BF47: 2.949389091 | BG47: 3.032362803 | BH47: 3.111733482 | BI47: 3.1741951 | BJ47: 3.177876419 | BK47: 3.244094667 | BL47: 3.210845398 | BM47: 3.207844651 | BN47: 3.314513808 | BO47: =BO$32*BO14 -> 3.512457822 | BP47: 3.264274364 | BQ47: 3.19728277 | BR47: 3.19081056 | BS47: 3.38392973 | BT47: 3.469482227 | BU47: 3.348667033 | BV47: 3.119608404 | BW47: 3.143442931 | BX47: =BX$32*BX14 -> 3.223697549 | BY47: 3.310264064 | BZ47: 3.297949268 | CA47: 3.374718438 | CB47: 3.300588626 | CC47: 3.199576667 | CD47: 3.199236493 | CE47: 3.303979879 | CF47: 3.457983229 | CG47: 3.464772679 | CH47: 3.495989693 | CI47: 3.5233836
A48: 15 | B48: PARA | C48: =C$32*C15 -> 2.882007258 | D48: 2.953197484 | E48: 2.981780581 | F48: 2.985945299 | G48: 2.970998157 | H48: 2.953142895 | I48: 2.942730558 | J48: 2.947354505 | K48: 2.94029779 | L48: 2.923199944 | M48: 2.931126232 | N48: 3.046670148 | O48: 3.069859456 | P48: 3.109087173 | Q48: 3.089106141 | R48: 3.057007691 | S48: 3.032750511 | T48: 3.003289205 | U48: 3.010714514 | V48: 3.022046672 | W48: 3.029982647 | X48: 3.026912146 | Y48: 3.060212931 | Z48: 3.100574124 | AA48: 3.08665983 | AB48: 3.246799239 | AC48: 3.234724247 | AD48: 3.168303971 | AE48: 3.170074632 | AF48: 3.121661951 | AG48: 3.138743291 | AH48: 3.135920255 | AI48: =AI$32*AI15 -> 3.182011031 | AJ48: 3.242199318 | AK48: 3.223959096 | AL48: 3.235413425 | AM48: 3.237674672 | AN48: 3.200445485 | AO48: 3.183043509 | AP48: 3.172744242 | AQ48: 3.149095801 | AR48: 3.125817436 | AS48: 3.119277859 | AT48: 3.104226538 | AU48: 3.098189605 | AV48: 3.070886884 | AW48: 3.025242329 | AX48: 3.048822613 | AY48: 3.114704999 | AZ48: 3.008983267 | BA48: 2.887378564 | BB48: 2.83772892 | BC48: 2.877211253 | BD48: 2.796479417 | BE48: 2.685387499 | BF48: 2.856428403 | BG48: 2.939578406 | BH48: 3.083311018 | BI48: 3.197257284 | BJ48: 3.208191688 | BK48: 3.308622697 | BL48: 3.220185284 | BM48: 3.229568204 | BN48: 3.318647907 | BO48: =BO$32*BO15 -> 3.512457822 | BP48: 3.322821765 | BQ48: 3.262202217 | BR48: 3.229229699 | BS48: 3.449705876 | BT48: 3.546022328 | BU48: 3.522115954 | BV48: 3.272323534 | BW48: 3.25023939 | BX48: =BX$32*BX15 -> 3.319821612 | BY48: 3.398416184 | BZ48: 3.403685046 | CA48: 3.426791245 | CB48: 3.421830649 | CC48: 3.362063006 | CD48: 3.4113848 | CE48: 3.523111192 | CF48: 3.663228669 | CG48: 3.664037775 | CH48: 3.722027879 | CI48: 3.6907343
A49: 16 | B49: PARAIBA | C49: =C$32*C16 -> 2.710137924 | D49: 2.758852585 | E49: 2.820792427 | F49: 2.846610474 | G49: 2.847668476 | H49: 2.826125996 | I49: 2.8215512 | J49: 2.816575113 | K49: 2.793351567 | L49: 2.789083093 | M49: 2.778718554 | N49: 2.865304622 | O49: 2.908923181 | P49: 2.903682015 | Q49: 2.879809927 | R49: 2.854869785 | S49: 2.833261763 | T49: 2.846245992 | U49: 2.840077195 | V49: 2.833330327 | W49: 2.8365795 | X49: 2.825630821 | Y49: 2.871263613 | Z49: 2.941798309 | AA49: 2.934154383 | AB49: 3.006526135 | AC49: 3.044084605 | AD49: 3.023848732 | AE49: 3.010968225 | AF49: 2.984064739 | AG49: 2.977295073 | AH49: 2.963668804 | AI49: =AI$32*AI16 -> 2.972466835 | AJ49: 3.02558434 | AK49: 3.070658447 | AL49: 3.056051487 | AM49: 3.077100586 | AN49: 3.068874114 | AO49: 3.049302186 | AP49: 3.030697631 | AQ49: 3.009013431 | AR49: 2.971496617 | AS49: 2.944772804 | AT49: 2.936049287 | AU49: 2.917785957 | AV49: 2.893865637 | AW49: 2.836837558 | AX49: 2.804873818 | AY49: 2.878986011 | AZ49: 2.867019885 | BA49: 2.749073769 | BB49: 2.726299774 | BC49: 2.777595099 | BD49: 2.704566417 | BE49: 2.673739524 | BF49: 2.811004431 | BG49: 2.896349312 | BH49: 2.973831897 | BI49: 3.012759814 | BJ49: 3.03988968 | BK49: 3.12232403 | BL49: 3.133013011 | BM49: 3.11681262 | BN49: 3.177055019 | BO49: =BO$32*BO16 -> 3.370144499 | BP49: 3.225242764 | BQ49: 3.127291491 | BR49: 3.125093613 | BS49: 3.318153584 | BT49: 3.450347202 | BU49: 3.398796779 | BV49: 3.222088294 | BW49: 3.122285142 | BX49: =BX$32*BX16 -> 3.15691662 | BY49: 3.214006003 | BZ49: 3.247598897 | CA49: 3.343675034 | CB49: 3.277542621 | CC49: 3.177510621 | CD49: 3.172217605 | CE49: 3.271960692 | CF49: 3.417739025 | CG49: 3.444439506 | CH49: 3.461526472 | CI49: 3.457245
A50: 17 | B50: PARANA | C50: =C$32*C17 -> 2.677468547 | D50: 2.733503251 | E50: 2.803993664 | F50: 2.820136857 | G50: 2.79501086 | H50: 2.784707442 | I50: 2.782994131 | J50: 2.769769857 | K50: 2.774124958 | L50: 2.757606689 | M50: 2.733812721 | N50: 2.874778941 | O50: 2.907582045 | P50: 2.887676418 | Q50: 2.858615374 | R50: 2.835181028 | S50: 2.817615587 | T50: 2.804713903 | U50: 2.785783502 | V50: 2.79196784 | W50: 2.782426618 | X50: 2.770502815 | Y50: 2.807429385 | Z50: 2.856694472 | AA50: 2.849709218 | AB50: 2.943034279 | AC50: 2.98012808 | AD50: 2.932805515 | AE50: 2.914540099 | AF50: 2.890737935 | AG50: 2.88707401 | AH50: 2.8834421 | AI50: =AI$32*AI17 -> 2.880644097 | AJ50: 2.971723318 | AK50: 2.973103489 | AL50: 2.949124177 | AM50: 2.937025318 | AN50: 2.91481191 | AO50: 2.884354553 | AP50: 2.875334149 | AQ50: 2.840252781 | AR50: 2.816081325 | AS50: 2.80516876 | AT50: 2.771127081 | AU50: 2.749265183 | AV50: 2.731955959 | AW50: 2.665658366 | AX50: 2.665167459 | AY50: 2.776126816 | AZ50: 2.735730441 | BA50: 2.604385676 | BB50: 2.54058453 | BC50: 2.548689894 | BD50: 2.451013316 | BE50: 2.386775797 | BF50: 2.678957999 | BG50: 2.813054228 | BH50: 2.867510827 | BI50: 2.906883426 | BJ50: 2.912356481 | BK50: 2.957881631 | BL50: 2.898478085 | BM50: 2.875784628 | BN50: 3.023059835 | BO50: =BO$32*BO17 -> 3.213393592 | BP50: 2.974618804 | BQ50: 2.914274555 | BR50: 2.899633931 | BS50: 3.077311695 | BT50: 3.195549232 | BU50: 3.086989758 | BV50: 2.887521595 | BW50: 2.882496867 | BX50: =BX$32*BX17 -> 2.958597499 | BY50: 3.043781221 | BZ50: 3.034113326 | CA50: 3.115355804 | CB50: 3.045078577 | CC50: 2.957853163 | CD50: 2.9570672 | CE50: 3.05182878 | CF50: 3.213499689 | CG50: 3.220774603 | CH50: 3.247651777 | CI50: 3.2538187
A51: 18 | B51: PERNAMBUCO | C51: =C$32*C18 -> 2.704456293 | D51: 2.743361325 | E51: 2.823592221 | F51: 2.835463688 | G51: 2.828268302 | H51: 2.819222904 | I51: 2.809157856 | J51: 2.809691987 | K51: 2.790604909 | L51: 2.772660621 | M51: 2.75286368 | N51: 2.866658096 | O51: 2.908923181 | P51: 2.925022811 | Q51: 2.904978459 | R51: 2.862745288 | S51: 2.844996396 | T51: 2.826777825 | U51: 2.823272004 | V51: 2.832037749 | W51: 2.822396602 | X51: 2.812810355 | Y51: 2.876370352 | Z51: 2.920204798 | AA51: 2.915248749 | AB51: 2.996566629 | AC51: 3.033015206 | AD51: 2.998356631 | AE51: 2.985655842 | AF51: 2.976885755 | AG51: 2.964236762 | AH51: 2.968388021 | AI51: =AI$32*AI18 -> 3.020732633 | AJ51: 3.051343959 | AK51: 3.111306346 | AL51: 3.093993435 | AM51: 3.070267646 | AN51: 3.067749572 | AO51: 3.031470009 | AP51: 3.011832065 | AQ51: 3.028867625 | AR51: 2.974780039 | AS51: 2.95567937 | AT51: 2.923029113 | AU51: 2.8886189 | AV51: 2.869039486 | AW51: 2.810999189 | AX51: 2.779081875 | AY51: 2.867200061 | AZ51: 2.836065463 | BA51: 2.741626588 | BB51: 2.661564746 | BC51: 2.708711588 | BD51: 2.613709889 | BE51: 2.579496824 | BF51: 2.681070742 | BG51: 2.810945492 | BH51: 2.92014502 | BI51: 2.915269674 | BJ51: 2.992848746 | BK51: 3.142098749 | BL51: 3.125748655 | BM51: 3.042331867 | BN51: 3.161552148 | BO51: =BO$32*BO18 -> 3.386644594 | BP51: 3.257084333 | BQ51: 3.19728277 | BR51: 3.216086309 | BS51: 3.381905849 | BT51: 3.509766491 | BU51: 3.44391355 | BV51: 3.31753525 | BW51: 3.236134197 | BX51: =BX$32*BX18 -> 3.274289161 | BY51: 3.335595133 | BZ51: 3.32413146 | CA51: 3.38973944 | CB51: 3.343674634 | CC51: 3.256747786 | CD51: 3.259278467 | CE51: 3.2529493 | CF51: 3.46603207 | CG51: 3.480022559 | CH51: 3.52437117 | CI51: 3.517371
A52: 19 | B52: PIAUI | C52: =C$32*C19 -> 2.808146057 | D52: 2.857433331 | E52: 2.911785732 | F52: 2.939964807 | G52: 2.922497721 | H52: 2.90344063 | I52: 2.894534223 | J52: 2.889536247 | K52: 2.888111281 | L52: 2.875301069 | M52: 2.861726307 | N52: 2.960047808 | O52: 2.998779268 | P52: 2.982376199 | Q52: 2.9659128 | R52: 2.930999646 | S52: 2.914100341 | T52: 2.905948371 | U52: 2.904712543 | V52: 2.909592411 | W52: 2.904915279 | X52: 2.896143387 | Y52: 2.954248111 | Z52: 3.02182132 | AA52: 3.000954289 | AB52: 3.081222437 | AC52: 3.126490127 | AD52: 3.090613758 | AE52: 3.05315553 | AF52: 3.041496619 | AG52: 3.041399513 | AH52: 3.027378244 | AI52: =AI$32*AI19 -> 3.073707289 | AJ52: 3.109888547 | AK52: 3.168213405 | AL52: 3.225065621 | AM52: 3.210342913 | AN52: 3.242053525 | AO52: 3.139577579 | AP52: 3.109489111 | AQ52: 3.055339884 | AR52: 3.044826368 | AS52: 3.038569271 | AT52: 3.022850449 | AU52: 3.044176537 | AV52: 3.035266755 | AW52: 3.017706138 | AX52: 2.918788233 | AY52: 3.084704401 | AZ52: 3.021791994 | BA52: 2.894825745 | BB52: 2.750708063 | BC52: 2.835881146 | BD52: 2.767954693 | BE52: 2.688564219 | BF52: 2.866992118 | BG52: 3.001786127 | BH52: 3.045414399 | BI52: 3.123877608 | BJ52: 3.1601054 | BK52: 3.195178257 | BL52: 3.188014564 | BM52: 3.170604275 | BN52: 3.293843314 | BO52: =BO$32*BO19 -> 3.529989174 | BP52: 3.422455061 | BQ52: 3.235828691 | BR52: 3.222152489 | BS52: 3.42744318 | BT52: 3.600406084 | BU52: 3.44591874 | BV52: 3.243187094 | BW52: 3.212961381 | BX52: =BX$32*BX19 -> 3.239886865 | BY52: 3.28290651 | BZ52: 3.244577875 | CA52: 3.364704437 | CB52: 3.281550622 | CC52: 3.207600684 | CD52: 3.232259579 | CE52: 3.366017054 | CF52: 3.518349535 | CG52: 3.553221982 | CH52: 3.57099788 | CI52: 3.5815054
A53: 20 | B53: RIO DE JANEIRO | C53: =C$32*C20 -> 2.671786916 | D53: 2.723645176 | E53: 2.767596342 | F53: 2.795056589 | G53: 2.783925046 | H53: 2.770901257 | I53: 2.75407633 | J53: 2.750497104 | K53: 2.73704507 | L53: 2.727498824 | M53: 2.718844109 | N53: 2.812519133 | O53: 2.852595484 | P53: 2.851663825 | Q53: 2.837420821 | R53: 2.808929351 | S53: 2.790234778 | T53: 2.773564836 | U53: 2.765100191 | V53: 2.767408864 | W53: 2.764375658 | X53: 2.760246442 | Y53: 2.808706069 | Z53: 2.873207156 | AA53: 2.866094101 | AB53: 2.940544402 | AC53: 2.992427411 | AD53: 2.94615852 | AE53: 2.921772209 | AF53: 2.900309915 | AG53: 2.88707401 | AH53: 2.884621905 | AI53: =AI$32*AI20 -> 2.915960534 | AJ53: 2.982261344 | AK53: 3.017235494 | AL53: 2.999713442 | AM53: 2.982578251 | AN53: 2.960918117 | AO53: 2.938965593 | AP53: 3.000734673 | AQ53: 2.997983323 | AR53: 2.978063461 | AS53: 2.95895134 | AT53: 2.934964273 | AU53: 2.923187263 | AV53: 2.916532992 | AW53: 2.85190994 | AX53: 2.832815089 | AY53: 2.930415608 | AZ53: 2.913985215 | BA53: 2.84056771 | BB53: 2.799524641 | BC53: 2.847538356 | BD53: 2.783801762 | BE53: 2.727743768 | BF53: 2.949389091 | BG53: 3.03447154 | BH53: 3.104364695 | BI53: 3.153229479 | BJ53: 3.181012481 | BK53: 3.222238399 | BL53: 3.19320339 | BM53: 3.160259726 | BN53: 3.287642165 | BO53: =BO$32*BO20 -> 3.457801256 | BP53: 3.21497129 | BQ53: 3.066429509 | BR53: 3.048255336 | BS53: 3.202792343 | BT53: 3.275110654 | BU53: 3.214319313 | BV53: 3.033203791 | BW53: 2.996345922 | BX53: =BX$32*BX20 -> 3.06686355 | BY53: 3.158277652 | BZ53: 3.147905164 | CA53: 3.207484616 | CB53: 3.145278596 | CC53: 3.063168383 | CD53: 3.061139954 | CE53: 3.15088814 | CF53: 3.312097989 | CG53: 3.330573737 | CH53: 3.346986943 | CI53: 3.3680581
A54: 21 | B54: RIO GRANDE DO NORTE | C54: =C$32*C21 -> 2.705876701 | D54: 2.733503251 | E54: 2.775995724 | F54: 2.76997632 | G54: 2.754824784 | H54: 2.743288888 | I54: 2.765092635 | J54: 2.787665984 | K54: 2.760391666 | L54: 2.771292082 | M54: 2.795047948 | N54: 2.817933029 | O54: 2.878077061 | P54: 2.897013016 | Q54: 2.883783906 | R54: 2.84305653 | S54: 2.867161812 | T54: 2.900756859 | U54: 2.908590664 | V54: 2.913470144 | W54: 2.907493987 | X54: 2.882040874 | Y54: 2.927437735 | Z54: 2.958310994 | AA54: 2.955580768 | AB54: 3.031424903 | AC54: 3.064993469 | AD54: 3.026276551 | AE54: 3.047128772 | AF54: 3.012780679 | AG54: 2.99866322 | AH54: 3.003782155 | AI54: =AI$32*AI21 -> 3.013669345 | AJ54: 3.072420011 | AK54: 3.069497078 | AL54: 3.111239775 | AM54: 3.115820578 | AN54: 3.085742238 | AO54: 3.059332785 | AP54: 3.086184588 | AQ54: 3.096151283 | AR54: 3.018558995 | AS54: 3.049475837 | AT54: 3.017425376 | AU54: 2.978280593 | AV54: 2.992090841 | AW54: 2.988637974 | AX54: 2.988641413 | AY54: 3.021488854 | AZ54: 3.000444117 | BA54: 2.951211546 | BB54: 2.889729188 | BC54: 2.85495658 | BD54: 2.808100601 | BE54: 2.779630199 | BF54: 2.834244603 | BG54: 2.955393928 | BH54: 3.036992928 | BI54: 3.050497933 | BJ54: 3.113064466 | BK54: 3.166036566 | BL54: 3.182825739 | BM54: 3.217154745 | BN54: 3.275239869 | BO54: =BO$32*BO21 -> 3.38767585 | BP54: 3.267355807 | BQ54: 3.150621917 | BR54: 3.126104643 | BS54: 3.302974473 | BT54: 3.439269029 | BU54: 3.461960258 | BV54: 3.278351762 | BW54: 3.210946353 | BX54: =BX$32*BX21 -> 3.201437239 | BY54: 3.267707869 | BZ54: 3.30499832 | CA54: 3.370712838 | CB54: 3.341670634 | CC54: 3.276807828 | CD54: 3.263281265 | CE54: 3.315987074 | CF54: 3.431824496 | CG54: 3.474939266 | CH54: 3.506125935 | CI54: 3.5063479
A55: 22 | B55: RIO GRANDE DO SUL | C55: =C$32*C22 -> 2.710137924 | D55: 2.775752142 | E55: 2.810993149 | F55: 2.818743509 | G55: 2.800553767 | H55: 2.786088061 | I55: 2.770600788 | J55: 2.756003605 | K55: 2.752151691 | L55: 2.737078599 | M55: 2.725648024 | N55: 2.827407348 | O55: 2.841866399 | P55: 2.839659628 | Q55: 2.814901608 | R55: 2.782677675 | S55: 2.757638578 | T55: 2.722947602 | U55: 2.715977326 | V55: 2.711828023 | W55: 2.707644068 | X55: 2.688451829 | Y55: 2.73082831 | Z55: 2.791913939 | AA55: 2.776607434 | AB55: 2.874562669 | AC55: 2.914941621 | AD55: 2.872110036 | AE55: 2.850656466 | AF55: 2.820144583 | AG55: 2.821782452 | AH55: 2.823272073 | AI55: =AI$32*AI22 -> 2.804125149 | AJ55: 2.887419111 | AK55: 2.901098639 | AL55: 2.865191988 | AM55: 2.87894533 | AN55: 2.856335745 | AO55: 2.825285468 | AP55: 2.815408235 | AQ55: 2.788411273 | AR55: 2.769018947 | AS55: 2.759361183 | AT55: 2.736406616 | AU55: 2.712536297 | AV55: 2.699574024 | AW55: 2.651662583 | AX55: 2.639375516 | AY55: 2.724697218 | AZ55: 2.716517352 | BA55: 2.652260412 | BB55: 2.613809398 | BC55: 2.622872136 | BD55: 2.534474545 | BE55: 2.46725271 | BF55: 2.678957999 | BG55: 2.775096974 | BH55: 2.902249394 | BI55: 2.926800766 | BJ55: 2.966714894 | BK55: 3.030735858 | BL55: 2.943101987 | BM55: 2.957506565 | BN55: 3.044763854 | BO55: =BO$32*BO22 -> 3.261862622 | BP55: 3.08965931 | BQ55: 2.982237101 | BR55: 2.969394999 | BS55: 3.128920671 | BT55: 3.258996948 | BU55: 3.167197352 | BV55: 2.945794474 | BW55: 2.910707253 | BX55: =BX$32*BX22 -> 2.982881473 | BY55: 3.070125533 | BZ55: 3.063316541 | CA55: 3.15741461 | CB55: 3.10920659 | CC55: 3.002988257 | CD55: 2.997095182 | CE55: 3.034818587 | CF55: 3.199414218 | CG55: 3.256357656 | CH55: 3.276033253 | CI55: 3.3019195
A56: 23 | B56: RONDONIA | C56: =C$32*C23 -> 2.916097043 | D56: 2.965872152 | E56: 3.020977696 | F56: 3.05700606 | G56: 3.054141762 | H56: 3.033218766 | I56: 3.05427065 | J56: 3.039588391 | K56: 3.04192415 | L56: 3.025840392 | M56: 3.003247722 | N56: 3.084567423 | O56: 3.102046712 | P56: 3.093081577 | Q56: 3.132819907 | R56: 3.154138893 | S56: 3.131842962 | T56: 3.11750245 | U56: 3.090862345 | V56: 3.094431023 | W56: 3.085424883 | X56: 3.078194012 | Y56: 3.072979777 | Z56: 3.114546396 | AA56: 3.169844619 | AB56: 3.185797259 | AC56: 3.271622242 | AD56: 3.212004715 | AE56: 3.192976312 | AF56: 3.206613273 | AG56: 3.183853822 | AH56: 3.186651847 | AI56: =AI$32*AI23 -> 3.217327469 | AJ56: 3.229319508 | AK56: 3.272736575 | AL56: 3.288302202 | AM56: 3.271839372 | AN56: 3.230808109 | AO56: 3.207562752 | AP56: 3.207146156 | AQ56: 3.18880419 | AR56: 3.180541131 | AS56: 3.15745084 | AT56: 3.132436915 | AU56: 3.102510651 | AV56: 3.11838039 | AW56: 3.081225461 | AX56: 3.064942578 | AY56: 3.161848797 | AZ56: 3.106116108 | BA56: 2.991639101 | BB56: 2.909892557 | BC56: 2.885689223 | BD56: 2.795422946 | BE56: 2.747862996 | BF56: 2.932487148 | BG56: 3.086135579 | BH56: 3.135945211 | BI56: 3.190967597 | BJ56: 3.204010271 | BK56: 3.321111993 | BL56: 3.29179108 | BM56: 3.284394314 | BN56: 3.344486025 | BO56: =BO$32*BO23 -> 3.557833085 | BP56: 3.349527597 | BQ56: 3.263216583 | BR56: 3.263604718 | BS56: 3.417323773 | BT56: 3.586306592 | BU56: 3.487025131 | BV56: 3.31552584 | BW56: 3.326810436 | BX56: =BX$32*BX23 -> 3.400768192 | BY56: 3.413614825 | BZ56: 3.41375512 | CA56: 3.488878053 | CB56: 3.410808647 | CC56: 3.328963937 | CD56: 3.310314144 | CE56: 3.413045236 | CF56: 3.550544898 | CG56: 3.588805034 | CH56: 3.611542846 | CI56: 3.6025495
A57: 24 | B57: RORAIMA | C57: =C$32*C24 -> 2.89337052 | D57: 2.947564299 | E57: 3.015378109 | F57: 3.036105836 | G57: 2.989012605 | H57: 2.990419593 | I57: 2.975779474 | J57: 2.959744131 | K57: 2.967764374 | L57: 2.946465112 | M57: 2.947455626 | N57: 3.068325734 | O57: 3.12082261 | P57: 3.109087173 | Q57: 3.128845928 | R57: 3.081946784 | S57: 3.057523624 | T57: 3.046119172 | U57: 2.999080151 | V57: 3.019461516 | W57: 3.010642333 | X57: 3.011527586 | Y57: 3.056382877 | Z57: 3.10946557 | AA57: 3.08665983 | AB57: 3.195756766 | AC57: 3.228574581 | AD57: 3.209576896 | AE57: 3.186949554 | AF57: 3.171914845 | AG57: 3.15536296 | AH57: 3.153617322 | AI57: =AI$32*AI24 -> 3.136099662 | AJ57: 3.204730781 | AK57: 3.254154678 | AL57: 3.250360253 | AM57: 3.247924082 | AN57: 3.212815443 | AO57: 3.176356443 | AP57: 3.18828059 | AQ57: 3.134756661 | AR57: 3.095172167 | AS57: 3.097464727 | AT57: 3.105311552 | AU57: 3.088467253 | AV57: 3.092474841 | AW57: 3.005863553 | AX57: 3.03807597 | AY57: 3.1018476 | AZ57: 3.003646298 | BA57: 2.876739733 | BB57: 2.739034533 | BC57: 2.746862456 | BD57: 2.654912268 | BE57: 2.566789943 | BF57: 2.738114801 | BG57: 2.874207581 | BH57: 2.965410426 | BI57: 3.051546214 | BJ57: 3.06288747 | BK57: 3.187892835 | BL57: 3.172448087 | BM57: 3.082675608 | BN57: 3.132613456 | BO57: =BO$32*BO24 -> 3.371175755 | BP57: 3.204699817 | BQ57: 3.112075995 | BR57: 3.119027433 | BS57: 3.309046118 | BT57: 3.453368521 | BU57: 3.349669627 | BV57: 3.152763662 | BW57: 3.087022161 | BX57: =BX$32*BX24 -> 3.082041033 | BY57: 3.182595478 | BZ57: 3.195234512 | CA57: 3.252547622 | CB57: 3.264516619 | CC57: 3.172495611 | CD57: 3.16120991 | CE57: 3.245945102 | CF57: 3.4720687 | CG57: 3.500355732 | CH57: 3.517275801 | CI57: 3.5193752
A58: 25 | B58: SANTA CATARINA | C58: =C$32*C25 -> 2.734284855 | D58: 2.774343845 | E58: 2.848790367 | F58: 2.852183867 | G58: 2.839354116 | H58: 2.820603522 | I58: 2.800895627 | J58: 2.79179586 | K58: 2.809831517 | L58: 2.798662868 | M58: 2.793687165 | N58: 2.912676215 | O58: 2.943792707 | P58: 2.914352413 | Q58: 2.916900395 | R58: 2.861432704 | S58: 2.841084851 | T58: 2.818990559 | U58: 2.800003279 | V58: 2.802308462 | W58: 2.795320161 | X58: 2.758964395 | Y58: 2.821472915 | Z58: 2.882098602 | AA58: 2.852229969 | AB58: 2.977892553 | AC58: 2.971518547 | AD58: 2.932805515 | AE58: 2.915745451 | AF58: 2.895523925 | AG58: 2.885886891 | AH58: 2.891700732 | AI58: =AI$32*AI25 -> 2.923023822 | AJ58: 2.968210643 | AK58: 3.023042336 | AL58: 3.002012954 | AM58: 2.987133544 | AN58: 2.93505366 | AO58: 2.889927108 | AP58: 2.897528932 | AQ58: 2.884373212 | AR58: 2.851104489 | AS58: 2.80189679 | AT58: 2.804762531 | AU58: 2.803278251 | AV58: 2.778370067 | AW58: 2.723794695 | AX58: 2.754364596 | AY58: 2.802913064 | AZ58: 2.821121949 | BA58: 2.653324295 | BB58: 2.674299506 | BC58: 2.637708585 | BD58: 2.574620453 | BE58: 2.491607565 | BF58: 2.7011418 | BG58: 2.777205711 | BH58: 2.856983988 | BI58: 2.938331858 | BJ58: 2.957306707 | BK58: 3.017205788 | BL58: 2.935837631 | BM58: 2.886129177 | BN58: 3.048897953 | BO58: =BO$32*BO25 -> 3.235049967 | BP58: 3.072197805 | BQ58: 2.956877942 | BR58: 2.954229549 | BS58: 3.137016197 | BT58: 3.243890349 | BU58: 3.194267415 | BV58: 3.017128514 | BW58: 2.906677198 | BX58: =BX$32*BX25 -> 2.992999796 | BY58: 3.048847435 | BZ58: 3.062309534 | CA58: 3.137386607 | CB58: 3.075138583 | CC58: 2.957853163 | CD58: 2.935051809 | CE58: 2.959773617 | CF58: 3.093773183 | CG58: 3.214674651 | CH58: 3.228392918 | CI58: 3.2658439
A59: 26 | B59: SAO PAULO | C59: =C$32*C26 -> 2.649060392 | D59: 2.729278362 | E59: 2.780195415 | F59: 2.795056589 | G59: 2.775610685 | H59: 2.761236928 | I59: 2.751322253 | J59: 2.739484103 | K59: 2.731551753 | L59: 2.717919049 | M59: 2.701153933 | N59: 2.819286503 | O59: 2.852595484 | P59: 2.835658229 | Q59: 2.817550927 | R59: 2.793178346 | S59: 2.770677058 | T59: 2.755394547 | U59: 2.745709586 | V59: 2.746727621 | W59: 2.737299217 | X59: 2.723067089 | Y59: 2.784449062 | Z59: 2.823669102 | AA59: 2.818199828 | AB59: 2.906931067 | AC59: 2.943230084 | AD59: 2.901243866 | AE59: 2.889227716 | AF59: 2.871593975 | AG59: 2.87164146 | AH59: 2.865745033 | AI59: =AI$32*AI26 -> 2.88653017 | AJ59: 2.948305483 | AK59: 2.982394437 | AL59: 2.973269054 | AM59: 2.960940608 | AN59: 2.92830641 | AO59: 2.901072218 | AP59: 2.885321801 | AQ59: 2.859003964 | AR59: 2.829215011 | AS59: 2.812803356 | AT59: 2.792827371 | AU59: 2.783833547 | AV59: 2.770814282 | AW59: 2.707645715 | AX59: 2.711378024 | AY59: 2.811484664 | AZ59: 2.793369709 | BA59: 2.701199032 | BB59: 2.656258596 | BC59: 2.692815393 | BD59: 2.623218131 | BE59: 2.572084477 | BF59: 2.802553459 | BG59: 2.886859998 | BH59: 2.975937264 | BI59: 3.031628874 | BJ59: 3.008529057 | BK59: 3.034898957 | BL59: 2.999141306 | BM59: 2.965782204 | BN59: 3.09644009 | BO59: =BO$32*BO26 -> 3.290737789 | BP59: 3.046519121 | BQ59: 2.976150903 | BR59: 2.987593538 | BS59: 3.174458003 | BT59: 3.271082227 | BU59: 3.171207732 | BV59: 2.914648625 | BW59: 2.914737308 | BX59: =BX$32*BX26 -> 3.015260105 | BY59: 3.105589029 | BZ59: 3.099568808 | CA59: 3.191462214 | CB59: 3.114216591 | CC59: 3.032075318 | CD59: 3.020111272 | CE59: 3.128874949 | CF59: 3.282920941 | CG59: 3.298040661 | CH59: 3.311510098 | CI59: 3.3119405
A60: 27 | B60: SERGIPE | C60: =C$32*C27 -> 2.788260348 | D60: 2.872924591 | E60: 2.939783671 | F60: 2.949718244 | G60: 2.936354988 | H60: 2.917246815 | I60: 2.893157184 | J60: 2.893666123 | K60: 2.859271368 | L60: 2.838350508 | M60: 2.830428302 | N60: 2.950573489 | O60: 2.97061542 | P60: 2.955700204 | Q60: 2.908952438 | R60: 2.902122802 | S60: 2.865857964 | T60: 2.839756603 | U60: 2.843955316 | V60: 2.82040455 | W60: 2.821107248 | X60: 2.799989888 | Y60: 2.877647036 | Z60: 2.898611287 | AA60: 2.90642612 | AB60: 3.036404656 | AC60: 3.083442466 | AD60: 3.034773918 | AE60: 3.035075256 | AF60: 3.023549157 | AG60: 3.001037458 | AH60: 3.007321569 | AI60: =AI$32*AI27 -> 2.991302268 | AJ60: 3.091154279 | AK60: 3.121758663 | AL60: 3.106640751 | AM60: 3.118098225 | AN60: 3.075621364 | AO60: 3.023668432 | AP60: 3.037356065 | AQ60: 2.967099021 | AR60: 2.945229244 | AS60: 2.912053106 | AT60: 2.894818736 | AU60: 2.883217593 | AV60: 2.892786239 | AW60: 2.857292933 | AX60: 2.853233711 | AY60: 2.962559107 | AZ60: 2.881963399 | BA60: 2.777798611 | BB60: 2.748585603 | BC60: 2.768057382 | BD60: 2.719357015 | BE60: 2.688564219 | BF60: 2.917697947 | BG60: 3.0060036 | BH60: 3.026466089 | BI60: 3.107105111 | BJ60: 3.105746987 | BK60: 3.214952976 | BL60: 3.171410322 | BM60: 3.162328635 | BN60: 3.294876838 | BO60: =BO$32*BO27 -> 3.516582846 | BP60: 3.278654428 | BQ60: 3.263216583 | BR60: 3.218108369 | BS60: 3.385953611 | BT60: 3.481567506 | BU60: 3.375737095 | BV60: 3.241177685 | BW60: 3.15654061 | BX60: =BX$32*BX27 -> 3.18828342 | BY60: 3.248456257 | BZ60: 3.313054379 | CA60: 3.393745041 | CB60: 3.335658633 | CC60: 3.22966673 | CD60: 3.176220403 | CE60: 3.247946302 | CF60: 3.520361745 | CG60: 3.517638929 | CH60: 3.562888887 | CI60: 3.50735
A61: 28 | B61: TOCANTINS | C61: =C$32*C28 -> 2.695933847 | D61: 2.73772814 | E61: 2.728399226 | F61: 2.757436186 | G61: 2.771453505 | H61: 2.735005177 | I61: 2.744437063 | J61: 2.681665845 | K61: 2.721938449 | L61: 2.693285342 | M61: 2.66169123 | N61: 2.804398289 | O61: 2.848572078 | P61: 2.873004621 | Q61: 2.84007014 | R61: 2.816804854 | S61: 2.800665563 | T61: 2.809905414 | U61: 2.784490795 | V61: 2.80877135 | W61: 2.818528539 | X61: 2.799989888 | Y61: 2.86743356 | Z61: 2.944338722 | AA61: 2.916509124 | AB61: 2.999056505 | AC61: 3.040394805 | AD61: 3.028704371 | AE61: 3.039896663 | AF61: 3.049872101 | AG61: 2.995101862 | AH61: 2.999062937 | AI61: 3.030150349 | AJ61: 3.104034089 | AK61: 3.114790452 | AL61: 3.072148071 | AM61: 3.079378232 | AN61: 3.052005989 | AO61: 3.037042564 | AP61: 3.036246326 | AQ61: 3.017837517 | AR61: 2.987913726 | AS61: 2.972039219 | AT61: 2.921944099 | AU61: 2.882137331 | AV61: 2.900342024 | AW61: 2.800233202 | AX61: 2.746841946 | AY61: 2.89505776 | AZ61: 2.81578498 | BA61: 2.67247419 | BB61: 2.658381056 | BC61: 2.609095434 | BD61: 2.578846338 | BE61: 2.514903513 | BF61: 2.740227543 | BG61: 2.863663899 | BH61: 2.931724542 | BI61: 2.994939036 | BJ61: 3.007483703 | BK61: 3.147302622 | BL61: 3.152730549 | BM61: 3.036125137 | BN61: 3.143982228 | BO61: =BO$32*BO28 -> 3.373238267 | BP61: 3.161559627 | BQ61: 3.099903599 | BR61: 3.069486965 | BS61: 3.314105821 | BT61: 3.425169537 | BU61: 3.280490578 | BV61: 3.099514308 | BW61: 2.978210675 | BX61: =BX$32*BX28 -> 3.083052866 | BY61: 3.160304137 | BZ61: 3.167038304 | CA61: 3.228514019 | CB61: 3.170328601 | CC61: 3.115324492 | CD61: 3.13819382 | CE61: 3.236939706 | CF61: 3.376488716 | CG61: 3.40377316 | CH61: 3.408818016 | CI61: 3.3931106
B62: Média do mês no Brasil | C62: =AVERAGE(C35:C61) -> 2.795362387 | D62: =AVERAGE(D35:D61) -> 2.853730033 | E62: 2.904734399 | F62: 2.921283619 | G62: 2.907511343 | H62: 2.891833208 | I62: 2.884588947 | J62: 2.880154802 | K62: 2.872852068 | L62: 2.861311556 | M62: 2.850084054 | N62: 2.954834426 | O62: 2.992123262 | P62: 2.989637998 | Q62: 2.974498556 | R62: 2.949473047 | S62: 2.931195237 | T62: 2.919215566 | U62: 2.907633103 | V62: 2.912033947 | W62: 2.907971526 | X62: 2.892439697 | Y62: 2.939448027 | Z62: 2.991477497 | AA62: 2.985176254 | AB62: 3.071724018 | AC62: 3.113143075 | AD62: 3.07532749 | AE62: 3.062842985 | AF62: 3.046061035 | AG62: 3.031990493 | AH62: 3.029475675 | AI62: 3.043317713 | AJ62: 3.107243199 | AK62: 3.144684939 | AL62: 3.131977967 | AM62: 3.136066326 | AN62: 3.121394373 | AO62: 3.094130296 | AP62: 3.088445168 | AQ62: 3.064531641 | AR62: 3.034813959 | AS62: 3.021320739 | AT62: 3.003159445 | AU62: 2.990363517 | AV62: 2.981536729 | AW62: 2.933252952 | AX62: 2.92173361 | AY62: 3.016250654 | AZ62: 2.979689236 | BA62: 2.877291376 | BB62: 2.820198973 | BC62: 2.835763397 | BD62: 2.767015607 | BE62: 2.713468137 | BF62: 2.903965118 | BG62: 3.005105434 | BH62: 3.073641922 | BI62: 3.126129472 | BJ62: 3.151471549 | BK62: 3.222045663 | BL62: 3.198007859 | BM62: 3.170451022 | BN62: 3.270416753 | BO62: 3.457495699 | BP62: =AVERAGE(BP35:BP61) -> 3.281089147 | BQ62: 3.178535777 | BR62: 3.164636118 | BS62: 3.344951273 | BT62: 3.455531935 | BU62: 3.380527271 | BV62: 3.200542957 | BW62: 3.163070792 | BX62: =AVERAGE(BX35:BX61) -> 3.225159084 | BY62: 3.302008012 | BZ62: 3.299925986 | CA62: 3.374458816 | CB62: 3.316509296 | CC62: 3.239325268 | CD62: 3.226255381 | CE62: 3.310242892 | CF62: 3.467261754 | CG62: 3.495159477 | CH62: 3.519753548 | CI62: 3.514847193
C64: =C33 -> 2013-01-01 | O64: =O33 -> 2014-01-01 | AA64: =AA33 -> 2015-01-01 | AM64: =AM33 -> 2016-01-01 | AY64: =AY33 -> 2017-01-01 | BK64: =BK33 -> 2018-01-01 | BW64: =BW33 -> 2019-01-01 | CI64: 2020-01-01
A65: =Formulário!AC12 -> 2 | B65: =VLOOKUP($A$65,$A$34:$BW$61,2,0) -> ACRE | C65: =VLOOKUP($A$65,$A$34:$CI$61,C66,0) -> 3.247052041 | D65: =VLOOKUP($A$65,$A$34:$CI$61,D66,0) -> 3.267247574 | E65: =VLOOKUP($A$65,$A$34:$CI$61,E66,0) -> 3.265959669 | F65: 3.338462406 | G65: 3.338215747 | H65: 3.295536274 | I65: 3.284236023 | J65: 3.310783551 | K65: 3.297363379 | L65: 3.305022409 | M65: 3.321670906 | N65: 3.397219935 | O65: 3.44940084 | P65: 3.430532909 | Q65: =VLOOKUP($A$65,$A$34:$CI$61,Q66,0) -> 3.40702444 | R65: =VLOOKUP($A$65,$A$34:$CI$61,R66,0) -> 3.415343071 | S65: =VLOOKUP($A$65,$A$34:$CI$61,S66,0) -> 3.35740867 | T65: =VLOOKUP($A$65,$A$34:$CI$61,T66,0) -> 3.338141674 | U65: =VLOOKUP($A$65,$A$34:$CI$61,U66,0) -> 3.313207943 | V65: =VLOOKUP($A$65,$A$34:$CI$61,V66,0) -> 3.320632121 | W65: =VLOOKUP($A$65,$A$34:$CI$61,W66,0) -> 3.302036408 | X65: =VLOOKUP($A$65,$A$34:$CI$61,X66,0) -> 3.267936916 | Y65: =VLOOKUP($A$65,$A$34:$CI$61,Y66,0) -> 3.339806853 | Z65: =VLOOKUP($A$65,$A$34:$CI$61,Z66,0) -> 3.416855549 | AA65: 3.41561786 | AB65: 3.477112835 | AC65: =VLOOKUP($A$65,$A$34:$CI$61,AC66,0) -> 3.506539478 | AD65: =VLOOKUP($A$65,$A$34:$CI$61,AD66,0) -> 3.470567453 | AE65: =VLOOKUP($A$65,$A$34:$CI$61,AE66,0) -> 3.458153658 | AF65: =VLOOKUP($A$65,$A$34:$CI$61,AF66,0) -> 3.433947796 | AG65: =VLOOKUP($A$65,$A$34:$CI$61,AG66,0) -> 3.418903433 | AH65: =VLOOKUP($A$65,$A$34:$CI$61,AH66,0) -> 3.440309805 | AI65: =VLOOKUP($A$65,$A$34:$CI$61,AI66,0) -> 3.411567876 | AJ65: =VLOOKUP($A$65,$A$34:$CI$61,AJ66,0) -> 3.47520678 | AK65: =VLOOKUP($A$65,$A$34:$CI$61,AK66,0) -> 3.58049924 | AL65: =VLOOKUP($A$65,$A$34:$CI$61,AL66,0) -> 3.555045597 | AM65: 3.534907557 | AN65: 3.482705434 | AO65: =VLOOKUP($A$65,$A$34:$CI$61,AO66,0) -> 3.432693981 | AP65: =VLOOKUP($A$65,$A$34:$CI$61,AP66,0) -> 3.404679726 | AQ65: =VLOOKUP($A$65,$A$34:$CI$61,AQ66,0) -> 3.389552153 | AR65: =VLOOKUP($A$65,$A$34:$CI$61,AR66,0) -> 3.355656953 | AS65: =VLOOKUP($A$65,$A$34:$CI$61,AS66,0) -> 3.341771804 | AT65: =VLOOKUP($A$65,$A$34:$CI$61,AT66,0) -> 3.308209267 | AU65: =VLOOKUP($A$65,$A$34:$CI$61,AU66,0) -> 3.309920833 | AV65: =VLOOKUP($A$65,$A$34:$CI$61,AV66,0) -> 3.318068992 | AW65: =VLOOKUP($A$65,$A$34:$CI$61,AW66,0) -> 3.279319621 | AX65: =VLOOKUP($A$65,$A$34:$CI$61,AX66,0) -> 3.240112858 | AY65: 3.350423988 | AZ65: 3.299314395 | BA65: =VLOOKUP($A$65,$A$34:$CI$61,BA66,0) -> 3.192712995 | BB65: =VLOOKUP($A$65,$A$34:$CI$61,BB66,0) -> 3.132750849 | BC65: =VLOOKUP($A$65,$A$34:$CI$61,BC66,0) -> 3.1368491 | BD65: =VLOOKUP($A$65,$A$34:$CI$61,BD66,0) -> 3.0764443 | BE65: =VLOOKUP($A$65,$A$34:$CI$61,BE66,0) -> 3.053887045 | BF65: =VLOOKUP($A$65,$A$34:$CI$61,BF66,0) -> 3.277920612 | BG65: =VLOOKUP($A$65,$A$34:$CI$61,BG66,0) -> 3.347618881 | BH65: =VLOOKUP($A$65,$A$34:$CI$61,BH66,0) -> 3.42227522 | BI65: =VLOOKUP($A$65,$A$34:$CI$61,BI66,0) -> 3.478196612 | BJ65: =VLOOKUP($A$65,$A$34:$CI$61,BJ66,0) -> 3.5312061 | BK65: 3.643752143 | BL65: 3.583403089 | BM65: =VLOOKUP($A$65,$A$34:$CI$61,BM66,0) -> 3.535766855 | BN65: =VLOOKUP($A$65,$A$34:$CI$61,BN66,0) -> 3.759962967 | BO65: =VLOOKUP($A$65,$A$34:$CI$61,BO66,0) -> 3.930116489 | BP65: =VLOOKUP($A$65,$A$34:$CI$61,BP66,0) -> 3.815852506 | BQ65: =VLOOKUP($A$65,$A$34:$CI$61,BQ66,0) -> 3.691279188 | BR65: =VLOOKUP($A$65,$A$34:$CI$61,BR66,0) -> 3.662961553 | BS65: =VLOOKUP($A$65,$A$34:$CI$61,BS66,0) -> 3.754300029 | BT65: =VLOOKUP($A$65,$A$34:$CI$61,BT66,0) -> 3.891459891 | BU65: =VLOOKUP($A$65,$A$34:$CI$61,BU66,0) -> 3.951226579 | BV65: =VLOOKUP($A$65,$A$34:$CI$61,BV66,0) -> 3.883184052 | BW65: 3.839634939 | BX65: 3.845974382 | BY65: =VLOOKUP($A$65,$A$34:$CI$61,BY66,0) -> 3.976977794 | BZ65: =VLOOKUP($A$65,$A$34:$CI$61,BZ66,0) -> 3.91121678 | CA65: =VLOOKUP($A$65,$A$34:$CI$61,CA66,0) -> 3.940509512 | CB65: =VLOOKUP($A$65,$A$34:$CI$61,CB66,0) -> 3.944874748 | CC65: =VLOOKUP($A$65,$A$34:$CI$61,CC66,0) -> 3.92073517 | CD65: =VLOOKUP($A$65,$A$34:$CI$61,CD66,0) -> 3.854694705 | CE65: =VLOOKUP($A$65,$A$34:$CI$61,CE66,0) -> 3.917347434 | CF65: =VLOOKUP($A$65,$A$34:$CI$61,CF66,0) -> 3.965060199 | CG65: =VLOOKUP($A$65,$A$34:$CI$61,CG66,0) -> 3.989368543 | CH65: =VLOOKUP($A$65,$A$34:$CI$61,CH66,0) -> 4.001788144 | CI65: =VLOOKUP($A$65,$A$34:$CI$61,CI66,0) -> 3.9963748
A66: Linha auxiliar de dados do PROCV | C66: 3 | D66: 4 | E66: 5 | F66: 6 | G66: 7 | H66: 8 | I66: 9 | J66: 10 | K66: 11 | L66: 12 | M66: 13 | N66: 14 | O66: 15 | P66: 16 | Q66: 17 | R66: 18 | S66: 19 | T66: 20 | U66: 21 | V66: 22 | W66: 23 | X66: 24 | Y66: 25 | Z66: 26 | AA66: 27 | AB66: 28 | AC66: 29 | AD66: 30 | AE66: 31 | AF66: 32 | AG66: 33 | AH66: 34 | AI66: 35 | AJ66: 36 | AK66: 37 | AL66: 38 | AM66: 39 | AN66: 40 | AO66: 41 | AP66: 42 | AQ66: 43 | AR66: 44 | AS66: 45 | AT66: 46 | AU66: 47 | AV66: 48 | AW66: 49 | AX66: 50 | AY66: 51 | AZ66: 52 | BA66: 53 | BB66: 54 | BC66: 55 | BD66: 56 | BE66: 57 | BF66: 58 | BG66: 59 | BH66: 60 | BI66: 61 | BJ66: 62 | BK66: 63 | BL66: 64 | BM66: 65 | BN66: 66 | BO66: 67 | BP66: 68 | BQ66: 69 | BR66: 70 | BS66: 71 | BT66: 72 | BU66: 73 | BV66: 74 | BW66: 75 | BX66: 76 | BY66: 77 | BZ66: 78 | CA66: 79 | CB66: 80 | CC66: 81 | CD66: 82 | CE66: 83 | CF66: 84 | CG66: 85 | CH66: 86 | CI66: 87

Sheet PreçoDiesel
A1: Chave | B1: UF | C1: SIGLA | D1: Preço Médio Janeiro de 2020
A2: 1 | B2: Escolha o Estado | C2: UF | D2: =SeriePreçoDiesel!CI34 -> 3.514847193
A3: 2 | B3: ACRE | C3: AC | D3: =SeriePreçoDiesel!CI35 -> 3.9963748
A4: 3 | B4: ALAGOAS | C4: AL | D4: =SeriePreçoDiesel!CI36 -> 3.5514424
A5: 4 | B5: AMAPA | C5: AP | D5: =SeriePreçoDiesel!CI37 -> 3.9723244
A6: 5 | B6: AMAZONAS | C6: AM | D6: =SeriePreçoDiesel!CI38 -> 3.5384151 | E6: Voltar ao Formulário
A7: 6 | B7: BAHIA | C7: BA | D7: =SeriePreçoDiesel!CI39 -> 3.4321925
A8: 7 | B8: CEARA | C8: CE | D8: =SeriePreçoDiesel!CI40 -> 3.5724865
A9: 8 | B9: DISTRITO FEDERAL | C9: DF | D9: =SeriePreçoDiesel!CI41 -> 3.5865159
A10: 9 | B10: ESPIRITO SANTO | C10: ES | D10: =SeriePreçoDiesel!CI42 -> 3.3931106
A11: 10 | B11: GOIAS | C11: GO | D11: =SeriePreçoDiesel!CI43 -> 3.5424235
A12: 11 | B12: MARANHAO | C12: MA | D12: =SeriePreçoDiesel!CI44 -> 3.417161
A13: 12 | B13: MATO GROSSO | C13: MT | D13: =SeriePreçoDiesel!CI45 -> 3.6686881
A14: 13 | B14: MATO GROSSO DO SUL | C14: MS | D14: =SeriePreçoDiesel!CI46 -> 3.4291862
A15: 14 | B15: MINAS GERAIS | C15: MG | D15: =SeriePreçoDiesel!CI47 -> 3.5233836
A16: 15 | B16: PARA | C16: PA | D16: =SeriePreçoDiesel!CI48 -> 3.6907343
A17: 16 | B17: PARAIBA | C17: PB | D17: =SeriePreçoDiesel!CI49 -> 3.457245
A18: 17 | B18: PARANA | C18: PR | D18: =SeriePreçoDiesel!CI50 -> 3.2538187
A19: 18 | B19: PERNAMBUCO | C19: PE | D19: =SeriePreçoDiesel!CI51 -> 3.517371
A20: 19 | B20: PIAUI | C20: PI | D20: =SeriePreçoDiesel!CI52 -> 3.5815054
A21: 20 | B21: RIO DE JANEIRO | C21: RJ | D21: =SeriePreçoDiesel!CI53 -> 3.3680581
A22: 21 | B22: RIO GRANDE DO NORTE | C22: RN | D22: =SeriePreçoDiesel!CI54 -> 3.5063479
A23: 22 | B23: RIO GRANDE DO SUL | C23: RS | D23: =SeriePreçoDiesel!CI55 -> 3.3019195
A24: 23 | B24: RONDONIA | C24: RN | D24: =SeriePreçoDiesel!CI56 -> 3.6025495
A25: 24 | B25: RORAIMA | C25: RR | D25: =SeriePreçoDiesel!CI57 -> 3.5193752
A26: 25 | B26: SANTA CATARINA | C26: SC | D26: =SeriePreçoDiesel!CI58 -> 3.2658439
A27: 26 | B27: SAO PAULO | C27: SP | D27: =SeriePreçoDiesel!CI59 -> 3.3119405
A28: 27 | B28: SERGIPE | C28: SE | D28: =SeriePreçoDiesel!CI60 -> 3.50735
A29: 28 | B29: TOCANTINS | C29: TO | D29: =SeriePreçoDiesel!CI61 -> 3.3931106
A31: Fonte:
A32: Série histórica mensal a partir de 2013 obtida em 19/09/2018
A33: http://www.anp.gov.br/precos-e-defesa/234-precos/levantamento-de-precos/868-serie-historica-do-levantamento-de-precos-e-de-margens-de-comercializacao-de-combustiveis
